Workbook

Sheet Avantages perçus
A1: Bénéficiaire | B1: Type de bénéficiaire | C1: Entreprise | D1: Date | E1: Nature | F1: Montant
A2: Pr Jean-François MORÈRE | B2: Médecin | C2: ROCHE SAS | D2: 18/01/2013 | E2: Restauration | F2: 55
A3: Pr Jean-François MORÈRE | B3: Médecin | C3: ROCHE SAS | D3: 18/01/2013 | E3: Restauration | F3: 10
A4: Pr Jean-François MORÈRE | B4: Médecin | C4: ROCHE SAS | D4: 19/01/2013 | E4: Restauration | F4: 10
A5: Pr Jean-François MORÈRE | B5: Médecin | C5: LABORATOIRE GLAXOSMITHKLINE | D5: 30/01/2013 | E5: Hospitalite | F5: 18
A6: Pr Jean-François MORÈRE | B6: Médecin | C6: MERCK SERONO | D6: 2013-02-07 | E6: REPAS | F6: 20
A7: Pr Jean-François MORÈRE | B7: Médecin | C7: JANSSEN-CILAG | D7: 14/02/2013 | E7: REPAS | F7: 29
A8: Pr Jean-François MORÈRE | B8: Médecin | C8: AMGEN SAS | D8: 2013-03-05 | E8: HEBERGEMENT | F8: 218
A9: Pr Jean-François MORÈRE | B9: Médecin | C9: AMGEN SAS | D9: 2013-03-05 | E9: TRANSPORT | F9: 30
A10: Pr Jean-François MORÈRE | B10: Médecin | C10: AMGEN SAS | D10: 2013-03-05 | E10: TRANSPORT | F10: 27
A11: Pr Jean-François MORÈRE | B11: Médecin | C11: AMGEN SAS | D11: 2013-03-06 | E11: HEBERGEMENT | F11: 218
A12: Pr Jean-François MORÈRE | B12: Médecin | C12: AMGEN SAS | D12: 2013-03-06 | E12: TRANSPORT | F12: 30
A13: Pr Jean-François MORÈRE | B13: Médecin | C13: AMGEN SAS | D13: 2013-03-07 | E13: HEBERGEMENT | F13: 218
A14: Pr Jean-François MORÈRE | B14: Médecin | C14: AMGEN SAS | D14: 2013-03-08 | E14: TRANSPORT | F14: 30
A15: Pr Jean-François MORÈRE | B15: Médecin | C15: AMGEN SAS | D15: 2013-03-08 | E15: HEBERGEMENT | F15: 218
A16: Pr Jean-François MORÈRE | B16: Médecin | C16: AMGEN SAS | D16: 2013-03-09 | E16: TRANSPORT | F16: 24
A17: Pr Jean-François MORÈRE | B17: Médecin | C17: LABORATOIRE GLAXOSMITHKLINE | D17: 14/03/2013 | E17: Hospitalite | F17: 17
A18: Pr Jean-François MORÈRE | B18: Médecin | C18: LABORATOIRE NOVEX PHARMA | D18: 28/03/2013 | E18: Repas | F18: 21
A19: Pr Jean-François MORÈRE | B19: Médecin | C19: ROCHE SAS | D19: 30/05/2013 | E19: Transport | F19: 5965
A20: Pr Jean-François MORÈRE | B20: Médecin | C20: ROCHE SAS | D20: 31/05/2013 | E20: Hébergement | F20: 309
A21: Pr Jean-François MORÈRE | B21: Médecin | C21: ROCHE SAS | D21: 31/05/2013 | E21: Transport | F21: 28
A22: Pr Jean-François MORÈRE | B22: Médecin | C22: ROCHE SAS | D22: 31/05/2013 | E22: Transport | F22: 28
A23: Pr Jean-François MORÈRE | B23: Médecin | C23: ROCHE SAS | D23: 2013-06-01 | E23: Hébergement | F23: 309
A24: Pr Jean-François MORÈRE | B24: Médecin | C24: ROCHE SAS | D24: 2013-06-02 | E24: Hébergement | F24: 309
A25: Pr Jean-François MORÈRE | B25: Médecin | C25: ROCHE SAS | D25: 2013-06-03 | E25: Hébergement | F25: 309
A26: Pr Jean-François MORÈRE | B26: Médecin | C26: ROCHE SAS | D26: 2013-06-04 | E26: Hébergement | F26: 309
A27: Pr Jean-François MORÈRE | B27: Médecin | C27: ROCHE SAS | D27: 2013-06-05 | E27: Hébergement | F27: 309
A28: Pr Jean-François MORÈRE | B28: Médecin | C28: ROCHE SAS | D28: 2013-06-05 | E28: Transport | F28: 26
A29: Pr Jean-François MORÈRE | B29: Médecin | C29: ROCHE SAS | D29: 2013-06-06 | E29: Hébergement | F29: 309
A30: Pr Jean-François MORÈRE | B30: Médecin | C30: ROCHE SAS | D30: 2013-06-07 | E30: Hébergement | F30: 309
A31: Pr Jean-François MORÈRE | B31: Médecin | C31: LABORATOIRE GLAXOSMITHKLINE | D31: 13/06/2013 | E31: Hospitalite | F31: 20
A32: Pr Jean-François MORÈRE | B32: Médecin | C32: MSD France | D32: 26/06/2013 | E32: HOSPITALITÉ | F32: 465
A33: Pr Jean-François MORÈRE | B33: Médecin | C33: VIFOR FRANCE SA | D33: 2013-09-12 | E33: HOSPITALITE | F33: 81
A34: Pr Jean-François MORÈRE | B34: Médecin | C34: JANSSEN-CILAG | D34: 26/09/2013 | E34: REPAS | F34: 25
A35: Pr Jean-François MORÈRE | B35: Médecin | C35: JANSSEN-CILAG | D35: 2013-10-01 | E35: INSCRIPTION | F35: 999
A36: Pr Jean-François MORÈRE | B36: Médecin | C36: JANSSEN-CILAG | D36: 2013-10-01 | E36: REPAS | F36: 180
A37: Pr Jean-François MORÈRE | B37: Médecin | C37: JANSSEN-CILAG | D37: 2013-10-01 | E37: TRANSPORT | F37: 277
A38: Pr Jean-François MORÈRE | B38: Médecin | C38: JANSSEN-CILAG | D38: 2013-10-01 | E38: HEBERGEMENT | F38: 800
A39: Pr Jean-François MORÈRE | B39: Médecin | C39: Lilly France SAS | D39: 17/10/2013 | E39: REPAS | F39: 25
A40: Pr Jean-François MORÈRE | B40: Médecin | C40: BOEHRINGER INGELHEIM FRANCE | D40: 23/10/2013 | E40: HOSPITALITE | F40: 13
A41: Pr Jean-François MORÈRE | B41: Médecin | C41: ROCHE SAS | D41: 27/10/2013 | E41: Repas | F41: 58
A42: Pr Jean-François MORÈRE | B42: Médecin | C42: ROCHE SAS | D42: 27/10/2013 | E42: Inscription | F42: 980
A43: Pr Jean-François MORÈRE | B43: Médecin | C43: ROCHE SAS | D43: 27/10/2013 | E43: Transport | F43: 6560
A44: Pr Jean-François MORÈRE | B44: Médecin | C44: ROCHE SAS | D44: 28/10/2013 | E44: Repas | F44: 58
A45: Pr Jean-François MORÈRE | B45: Médecin | C45: ROCHE SAS | D45: 28/10/2013 | E45: Transport | F45: 12
A46: Pr Jean-François MORÈRE | B46: Médecin | C46: ROCHE SAS | D46: 28/10/2013 | E46: Hebergement | F46: 189
A47: Pr Jean-François MORÈRE | B47: Médecin | C47: ROCHE SAS | D47: 29/10/2013 | E47: Repas | F47: 58
A48: Pr Jean-François MORÈRE | B48: Médecin | C48: ROCHE SAS | D48: 29/10/2013 | E48: Hebergement | F48: 189
A49: Pr Jean-François MORÈRE | B49: Médecin | C49: ROCHE SAS | D49: 30/10/2013 | E49: Hebergement | F49: 189
A50: Pr Jean-François MORÈRE | B50: Médecin | C50: ROCHE SAS | D50: 30/10/2013 | E50: Repas | F50: 58
A51: Pr Jean-François MORÈRE | B51: Médecin | C51: ROCHE SAS | D51: 31/10/2013 | E51: Hebergement | F51: 189
A52: Pr Jean-François MORÈRE | B52: Médecin | C52: ROCHE SAS | D52: 31/10/2013 | E52: Repas | F52: 17
A53: Pr Jean-François MORÈRE | B53: Médecin | C53: PIERRE FABRE MEDICAMENT | D53: 2013-11-05 | E53: RESTAURATION | F53: 45
A54: Pr Jean-François MORÈRE | B54: Médecin | C54: PIERRE FABRE MEDICAMENT | D54: 2013-11-06 | E54: RESTAURATION | F54: 73
A55: Pr Jean-François MORÈRE | B55: Médecin | C55: PIERRE FABRE MEDICAMENT | D55: 2013-11-07 | E55: RESTAURATION | F55: 52
A56: Pr Jean-François MORÈRE | B56: Médecin | C56: AMGEN SAS | D56: 2013-11-08 | E56: REPAS IMPROMPTU | F56: 59
A57: Pr Jean-François MORÈRE | B57: Médecin | C57: ROCHE SAS | D57: 14/11/2013 | E57: Transport | F57: 318
A58: Pr Jean-François MORÈRE | B58: Médecin | C58: ROCHE SAS | D58: 14/11/2013 | E58: Inscription | F58: 530
A59: Pr Jean-François MORÈRE | B59: Médecin | C59: LABORATOIRE NOVEX PHARMA | D59: 14/11/2013 | E59: Repas | F59: 16
A60: Pr Jean-François MORÈRE | B60: Médecin | C60: ROCHE SAS | D60: 16/11/2013 | E60: Hebergement | F60: 180
A61: Pr Jean-François MORÈRE | B61: Médecin | C61: Genzyme | D61: 28/11/2013 | E61: Hébergement, restauration, transport | F61: 12
A62: Pr Jean-François MORÈRE | B62: Médecin | C62: ROCHE SAS | D62: 2013-12-04 | E62: Repas | F62: 40
A63: Pr Jean-François MORÈRE | B63: Médecin | C63: ROCHE SAS | D63: 2013-12-05 | E63: Repas | F63: 22
A64: Pr Jean-François MORÈRE | B64: Médecin | C64: NOVARTIS PHARMA SAS | D64: 2013-12-10 | E64: Hébergement | F64: 1163
A65: Pr Jean-François MORÈRE | B65: Médecin | C65: ASTRAZENECA | D65: 16/01/2014 | E65: Repas | F65: 20
A66: Pr Jean-François MORÈRE | B66: Médecin | C66: ROCHE SAS | D66: 31/01/2014 | E66: Transport | F66: 282
A67: Pr Jean-François MORÈRE | B67: Médecin | C67: ROCHE SAS | D67: 31/01/2014 | E67: Repas | F67: 32
A68: Pr Jean-François MORÈRE | B68: Médecin | C68: ROCHE SAS | D68: 2014-02-01 | E68: Hebergement | F68: 232
A69: Pr Jean-François MORÈRE | B69: Médecin | C69: AMGEN SAS | D69: 2014-02-06 | E69: REPAS IMPROMPTU | F69: 25
A70: Pr Jean-François MORÈRE | B70: Médecin | C70: Laboratoires Grünenthal SAS | D70: 20/02/2014 | E70: REPAS | F70: 16
A71: Pr Jean-François MORÈRE | B71: Médecin | C71: AMGEN SAS | D71: 2014-03-04 | E71: REPAS REUNION | F71: 60
A72: Pr Jean-François MORÈRE | B72: Médecin | C72: AMGEN SAS | D72: 2014-03-04 | E72: HEBERGEMENT | F72: 230
A73: Pr Jean-François MORÈRE | B73: Médecin | C73: AMGEN SAS | D73: 2014-03-05 | E73: HEBERGEMENT | F73: 230
A74: Pr Jean-François MORÈRE | B74: Médecin | C74: AMGEN SAS | D74: 2014-03-05 | E74: TRANSPORT | F74: 46
A75: Pr Jean-François MORÈRE | B75: Médecin | C75: AMGEN SAS | D75: 2014-03-05 | E75: TRANSPORT | F75: 41
A76: Pr Jean-François MORÈRE | B76: Médecin | C76: AMGEN SAS | D76: 2014-03-05 | E76: AUTRE [FRAIS D INSCRIPTION] | F76: 716
A77: Pr Jean-François MORÈRE | B77: Médecin | C77: AMGEN SAS | D77: 2014-03-05 | E77: TRANSPORT | F77: 41
A78: Pr Jean-François MORÈRE | B78: Médecin | C78: AMGEN SAS | D78: 2014-03-05 | E78: REPAS REUNION | F78: 60
A79: Pr Jean-François MORÈRE | B79: Médecin | C79: AMGEN SAS | D79: 2014-03-05 | E79: TRANSPORT | F79: 1025
A80: Pr Jean-François MORÈRE | B80: Médecin | C80: AMGEN SAS | D80: 2014-03-05 | E80: TRANSPORT | F80: 46
A81: Pr Jean-François MORÈRE | B81: Médecin | C81: AMGEN SAS | D81: 2014-03-06 | E81: REPAS IMPROMPTU | F81: 54
A82: Pr Jean-François MORÈRE | B82: Médecin | C82: AMGEN SAS | D82: 2014-03-06 | E82: REPAS IMPROMPTU | F82: 54
A83: Pr Jean-François MORÈRE | B83: Médecin | C83: AMGEN SAS | D83: 2014-03-07 | E83: REPAS REUNION | F83: 50
A84: Pr Jean-François MORÈRE | B84: Médecin | C84: AMGEN SAS | D84: 2014-03-08 | E84: REPAS REUNION | F84: 10
A85: Pr Jean-François MORÈRE | B85: Médecin | C85: ASTRAZENECA | D85: 13/03/2014 | E85: Repas | F85: 20
A86: Pr Jean-François MORÈRE | B86: Médecin | C86: SANOFI AVENTIS FRANCE | D86: 20/03/2014 | E86: Repas | F86: 17
A87: Pr Jean-François MORÈRE | B87: Médecin | C87: SANOFI AVENTIS FRANCE | D87: 20/03/2014 | E87: Repas | F87: 15
A88: Pr Jean-François MORÈRE | B88: Médecin | C88: ROCHE SAS | D88: 2014-04-06 | E88: Hebergement | F88: 270
A89: Pr Jean-François MORÈRE | B89: Médecin | C89: ROCHE SAS | D89: 2014-04-07 | E89: Hebergement | F89: 270
A90: Pr Jean-François MORÈRE | B90: Médecin | C90: ROCHE SAS | D90: 2014-04-07 | E90: Repas | F90: 46
A91: Pr Jean-François MORÈRE | B91: Médecin | C91: ROCHE SAS | D91: 2014-04-08 | E91: Hebergement | F91: 270
A92: Pr Jean-François MORÈRE | B92: Médecin | C92: BRISTOL-MYERS SQUIBB | D92: 15/04/2014 | E92: Repas | F92: 60
A93: Pr Jean-François MORÈRE | B93: Médecin | C93: PIERRE FABRE MEDICAMENT | D93: 19/05/2014 | E93: RESTAURATION | F93: 68
A94: Pr Jean-François MORÈRE | B94: Médecin | C94: ROCHE SAS | D94: 21/05/2014 | E94: Repas | F94: 23
A95: Pr Jean-François MORÈRE | B95: Médecin | C95: GILEAD SCIENCES | D95: 22/05/2014 | E95: REPAS | F95: 23
A96: Pr Jean-François MORÈRE | B96: Médecin | C96: ROCHE SAS | D96: 19/06/2014 | E96: Repas | F96: 22
A97: Pr Jean-François MORÈRE | B97: Médecin | C97: ROCHE SAS | D97: 2014-07-02 | E97: Repas | F97: 17
A98: Pr Jean-François MORÈRE | B98: Médecin | C98: ROCHE SAS | D98: 2014-07-02 | E98: Repas | F98: 17
A99: Pr Jean-François MORÈRE | B99: Médecin | C99: Takeda France | D99: 2014-07-03 | E99: REPAS | F99: 17
A100: Pr Jean-François MORÈRE | B100: Médecin | C100: PFIZER SAS | D100: 2014-07-06 | E100: Repas | F100: 19
A101: Pr Jean-François MORÈRE | B101: Médecin | C101: HOSPIRA FRANCE | D101: 2014-07-10 | E101: HOSPITALITE | F101: 19
A102: Pr Jean-François MORÈRE | B102: Médecin | C102: ROCHE SAS | D102: 2014-09-04 | E102: Transport | F102: 6271
A103: Pr Jean-François MORÈRE | B103: Médecin | C103: ROCHE SAS | D103: 2014-09-04 | E103: Hebergement | F103: 230
A104: Pr Jean-François MORÈRE | B104: Médecin | C104: ROCHE SAS | D104: 2014-09-04 | E104: Repas | F104: 55
A105: Pr Jean-François MORÈRE | B105: Médecin | C105: ROCHE SAS | D105: 2014-09-04 | E105: Inscription | F105: 562
A106: Pr Jean-François MORÈRE | B106: Médecin | C106: ROCHE SAS | D106: 2014-09-05 | E106: Hebergement | F106: 230
A107: Pr Jean-François MORÈRE | B107: Médecin | C107: ROCHE SAS | D107: 2014-09-05 | E107: Repas | F107: 52
A108: Pr Jean-François MORÈRE | B108: Médecin | C108: ROCHE SAS | D108: 2014-09-05 | E108: Transport | F108: 60
A109: Pr Jean-François MORÈRE | B109: Médecin | C109: ROCHE SAS | D109: 2014-09-06 | E109: Transport | F109: 33
A110: Pr Jean-François MORÈRE | B110: Médecin | C110: ROCHE SAS | D110: 2014-09-06 | E110: Hebergement | F110: 230
A111: Pr Jean-François MORÈRE | B111: Médecin | C111: ROCHE SAS | D111: 2014-09-06 | E111: Repas | F111: 59
A112: Pr Jean-François MORÈRE | B112: Médecin | C112: MERCK SERONO | D112: 16/09/2014 | E112: REPAS | F112: 30
A113: Pr Jean-François MORÈRE | B113: Médecin | C113: BRISTOL-MYERS SQUIBB | D113: 26/09/2014 | E113: Hospitalité | F113: 686
A114: Pr Jean-François MORÈRE | B114: Médecin | C114: BRISTOL-MYERS SQUIBB | D114: 26/09/2014 | E114: Hébergement | F114: 618
A115: Pr Jean-François MORÈRE | B115: Médecin | C115: BRISTOL-MYERS SQUIBB | D115: 26/09/2014 | E115: Repas | F115: 120
A116: Pr Jean-François MORÈRE | B116: Médecin | C116: BRISTOL-MYERS SQUIBB | D116: 26/09/2014 | E116: Transport | F116: 961
A117: Pr Jean-François MORÈRE | B117: Médecin | C117: JANSSEN-CILAG | D117: 2014-10-09 | E117: REPAS | F117: 22
A118: Pr Jean-François MORÈRE | B118: Médecin | C118: BRISTOL-MYERS SQUIBB | D118: 14/10/2014 | E118: Repas | F118: 60
A119: Pr Jean-François MORÈRE | B119: Médecin | C119: BOEHRINGER INGELHEIM FRANCE | D119: 17/10/2014 | E119: HOSPITALITE | F119: 458
A120: Pr Jean-François MORÈRE | B120: Médecin | C120: JANSSEN-CILAG | D120: 29/10/2014 | E120: REPAS | F120: 25
A121: Pr Jean-François MORÈRE | B121: Médecin | C121: ROCHE SAS | D121: 30/10/2014 | E121: Repas | F121: 22
A122: Pr Jean-François MORÈRE | B122: Médecin | C122: ROCHE SAS | D122: 30/10/2014 | E122: Repas | F122: 22
A123: Pr Jean-François MORÈRE | B123: Médecin | C123: PIERRE FABRE MEDICAMENT | D123: 2014-11-06 | E123: RESTAURATION | F123: 44
A124: Pr Jean-François MORÈRE | B124: Médecin | C124: AMGEN SAS | D124: 2014-11-07 | E124: REPAS IMPROMPTU | F124: 59
A125: Pr Jean-François MORÈRE | B125: Médecin | C125: AMGEN SAS | D125: 20/11/2014 | E125: REPAS IMPROMPTU | F125: 14
A126: Pr Jean-François MORÈRE | B126: Médecin | C126: ROCHE SAS | D126: 18/12/2014 | E126: Repas | F126: 20
A127: Pr Jean-François MORÈRE | B127: Médecin | C127: ROCHE SAS | D127: 18/12/2014 | E127: Repas | F127: 20
A128: Pr Jean-François MORÈRE | B128: Médecin | C128: CELGENE | D128: 2015-01-08 | E128: REPAS RÉUNION HOSPITALIÈRE | F128: 27
A129: Pr Jean-François MORÈRE | B129: Médecin | C129: PIERRE FABRE MEDICAMENT | D129: 2015-02-05 | E129: RESTAURATION | F129: 12
A130: Pr Jean-François MORÈRE | B130: Médecin | C130: AMGEN SAS | D130: 24/02/2015 | E130: HEBERGEMENT | F130: 222
A131: Pr Jean-François MORÈRE | B131: Médecin | C131: AMGEN SAS | D131: 24/02/2015 | E131: TRANSPORT | F131: 2787
A132: Pr Jean-François MORÈRE | B132: Médecin | C132: AMGEN SAS | D132: 24/02/2015 | E132: TRANSPORT | F132: 96
A133: Pr Jean-François MORÈRE | B133: Médecin | C133: AMGEN SAS | D133: 24/02/2015 | E133: INSCRIPTION CONGRES | F133: 831
A134: Pr Jean-François MORÈRE | B134: Médecin | C134: AMGEN SAS | D134: 24/02/2015 | E134: REPAS REUNION | F134: 55
A135: Pr Jean-François MORÈRE | B135: Médecin | C135: AMGEN SAS | D135: 25/02/2015 | E135: HEBERGEMENT | F135: 222
A136: Pr Jean-François MORÈRE | B136: Médecin | C136: AMGEN SAS | D136: 25/02/2015 | E136: REPAS REUNION | F136: 29
A137: Pr Jean-François MORÈRE | B137: Médecin | C137: AMGEN SAS | D137: 25/02/2015 | E137: REPAS REUNION | F137: 54
A138: Pr Jean-François MORÈRE | B138: Médecin | C138: AMGEN SAS | D138: 26/02/2015 | E138: REPAS IMPROMPTU | F138: 57
A139: Pr Jean-François MORÈRE | B139: Médecin | C139: AMGEN SAS | D139: 26/02/2015 | E139: HEBERGEMENT | F139: 222
A140: Pr Jean-François MORÈRE | B140: Médecin | C140: AMGEN SAS | D140: 27/02/2015 | E140: HEBERGEMENT | F140: 222
A141: Pr Jean-François MORÈRE | B141: Médecin | C141: AMGEN SAS | D141: 27/02/2015 | E141: REPAS REUNION | F141: 57
A142: Pr Jean-François MORÈRE | B142: Médecin | C142: BIOPROJET PHARMA | D142: 2015-03-05 | E142: Autre : repas STAFF | F142: 15
A143: Pr Jean-François MORÈRE | B143: Médecin | C143: ROCHE SAS | D143: 2015-04-09 | E143: Repas | F143: 11
A144: Pr Jean-François MORÈRE | B144: Médecin | C144: ROCHE SAS | D144: 28/05/2015 | E144: Hebergement | F144: 330
A145: Pr Jean-François MORÈRE | B145: Médecin | C145: ROCHE SAS | D145: 29/05/2015 | E145: Hebergement | F145: 660
A146: Pr Jean-François MORÈRE | B146: Médecin | C146: ROCHE SAS | D146: 29/05/2015 | E146: Inscription | F146: 493
A147: Pr Jean-François MORÈRE | B147: Médecin | C147: ROCHE SAS | D147: 29/05/2015 | E147: Transport | F147: 6500
A148: Pr Jean-François MORÈRE | B148: Médecin | C148: ROCHE SAS | D148: 30/05/2015 | E148: H‚bergement | F148: 330
A149: Pr Jean-François MORÈRE | B149: Médecin | C149: ROCHE SAS | D149: 30/05/2015 | E149: Transport | F149: 31
A150: Pr Jean-François MORÈRE | B150: Médecin | C150: ROCHE SAS | D150: 30/05/2015 | E150: Repas | F150: 43
A151: Pr Jean-François MORÈRE | B151: Médecin | C151: ROCHE SAS | D151: 31/05/2015 | E151: Hebergement | F151: 330
A152: Pr Jean-François MORÈRE | B152: Médecin | C152: PIERRE FABRE MEDICAMENT | D152: 31/05/2015 | E152: RESTAURATION | F152: 45
A153: Pr Jean-François MORÈRE | B153: Médecin | C153: ROCHE SAS | D153: 2015-06-01 | E153: Repas | F153: 59
A154: Pr Jean-François MORÈRE | B154: Médecin | C154: ROCHE SAS | D154: 2015-06-01 | E154: Hebergement | F154: 330
A155: Pr Jean-François MORÈRE | B155: Médecin | C155: ROCHE SAS | D155: 2015-06-02 | E155: Transport | F155: 31
A156: Pr Jean-François MORÈRE | B156: Médecin | C156: ROCHE SAS | D156: 2015-06-02 | E156: Repas | F156: 50
A157: Pr Jean-François MORÈRE | B157: Médecin | C157: ROCHE SAS | D157: 2015-06-02 | E157: H‚bergement | F157: 330
A158: Pr Jean-François MORÈRE | B158: Médecin | C158: ROCHE SAS | D158: 2015-06-02 | E158: Repas | F158: 12
A159: Pr Jean-François MORÈRE | B159: Médecin | C159: ROCHE SAS | D159: 2015-06-02 | E159: H‚bergement | F159: 330
A160: Pr Jean-François MORÈRE | B160: Médecin | C160: ROCHE SAS | D160: 2015-06-03 | E160: Repas | F160: 50
A161: Pr Jean-François MORÈRE | B161: Médecin | C161: ROCHE SAS | D161: 2015-06-03 | E161: H‚bergement | F161: 330
A162: Pr Jean-François MORÈRE | B162: Médecin | C162: ROCHE SAS | D162: 2015-06-03 | E162: Hebergement | F162: 330
A163: Pr Jean-François MORÈRE | B163: Médecin | C163: ROCHE SAS | D163: 2015-06-04 | E163: Repas | F163: 50
A164: Pr Jean-François MORÈRE | B164: Médecin | C164: ROCHE SAS | D164: 2015-06-04 | E164: Repas | F164: 64
A165: Pr Jean-François MORÈRE | B165: Médecin | C165: ROCHE SAS | D165: 2015-06-04 | E165: H‚bergement | F165: 330
A166: Pr Jean-François MORÈRE | B166: Médecin | C166: ROCHE SAS | D166: 2015-06-04 | E166: Hebergement | F166: 330
A167: Pr Jean-François MORÈRE | B167: Médecin | C167: ROCHE SAS | D167: 2015-06-05 | E167: Repas | F167: 37
A168: Pr Jean-François MORÈRE | B168: Médecin | C168: ROCHE SAS | D168: 2015-06-05 | E168: Repas | F168: 60
A169: Pr Jean-François MORÈRE | B169: Médecin | C169: ROCHE SAS | D169: 2015-06-06 | E169: Repas | F169: 82
A170: Pr Jean-François MORÈRE | B170: Médecin | C170: ROCHE SAS | D170: 2015-06-07 | E170: Repas | F170: 48
A171: Pr Jean-François MORÈRE | B171: Médecin | C171: MERCK SERONO | D171: 2015-06-11 | E171: REPAS | F171: 15
A172: Pr Jean-François MORÈRE | B172: Médecin | C172: PIERRE FABRE MEDICAMENT | D172: 2015-07-07 | E172: FRAIS DE DEPLACEMENT | F172: 4495
A173: Pr Jean-François MORÈRE | B173: Médecin | C173: Lilly France SAS | D173: 2015-09-03 | E173: AUTRE : [REMBOURSEMENT FRAIS LOGISTIQUE] | F173: 62
A174: Pr Jean-François MORÈRE | B174: Médecin | C174: PIERRE FABRE MEDICAMENT | D174: 2015-09-05 | E174: RESTAURATION | F174: 17
A175: Pr Jean-François MORÈRE | B175: Médecin | C175: HOSPIRA FRANCE | D175: 2015-09-11 | E175: [HOSPITALITE] | F175: 19
A176: Pr Jean-François MORÈRE | B176: Médecin | C176: ROCHE SAS | D176: 17/09/2015 | E176: Repas | F176: 10
A177: Pr Jean-François MORÈRE | B177: Médecin | C177: Bayer HealthCare SAS | D177: 24/09/2015 | E177: Hospitalité | F177: 10
A178: Pr Jean-François MORÈRE | B178: Médecin | C178: CELGENE | D178: 25/09/2015 | E178: INSCRIPTION | F178: 1013
A179: Pr Jean-François MORÈRE | B179: Médecin | C179: ROCHE SAS | D179: 17/11/2015 | E179: Repas | F179: 30
A180: Pr Jean-François MORÈRE | B180: Médecin | C180: BOEHRINGER INGELHEIM FRANCE | D180: 20/11/2015 | E180: HOSPITALITE | F180: 840
A181: Pr Jean-François MORÈRE | B181: Médecin | C181: PIERRE FABRE MEDICAMENT | D181: 24/11/2015 | E181: RESTAURATION | F181: 28
A182: Pr Jean-François MORÈRE | B182: Médecin | C182: BOEHRINGER INGELHEIM FRANCE | D182: 26/11/2015 | E182: HOSPITALITE | F182: 55
A183: Pr Jean-François MORÈRE | B183: Médecin | C183: ROCHE SAS | D183: 2015-12-07 | E183: Repas | F183: 24
A184: Pr Jean-François MORÈRE | B184: Médecin | C184: ROCHE SAS | D184: 16/12/2015 | E184: Repas | F184: 40
A185: Pr Jean-François MORÈRE | B185: Médecin | C185: ROCHE SAS | D185: 2016-01-07 | E185: Repas | F185: 10
A186: Pr Jean-François MORÈRE | B186: Médecin | C186: HOSPIRA FRANCE | D186: 2016-02-04 | E186: [HOSPITALITE] | F186: 40
A187: Pr Jean-François MORÈRE | B187: Médecin | C187: AMGEN SAS | D187: 2016-03-08 | E187: TRANSPORT | F187: 2349
A188: Pr Jean-François MORÈRE | B188: Médecin | C188: AMGEN SAS | D188: 2016-03-08 | E188: HEBERGEMENT | F188: 285
A189: Pr Jean-François MORÈRE | B189: Médecin | C189: AMGEN SAS | D189: 2016-03-08 | E189: REPAS REUNION | F189: 60
A190: Pr Jean-François MORÈRE | B190: Médecin | C190: AMGEN SAS | D190: 2016-03-09 | E190: REPAS REUNION | F190: 59
A191: Pr Jean-François MORÈRE | B191: Médecin | C191: AMGEN SAS | D191: 2016-03-09 | E191: HEBERGEMENT | F191: 285
A192: Pr Jean-François MORÈRE | B192: Médecin | C192: AMGEN SAS | D192: 2016-03-09 | E192: REPAS REUNION | F192: 58
A193: Pr Jean-François MORÈRE | B193: Médecin | C193: AMGEN SAS | D193: 2016-03-10 | E193: HEBERGEMENT | F193: 285
A194: Pr Jean-François MORÈRE | B194: Médecin | C194: AMGEN SAS | D194: 2016-03-10 | E194: FRAIS D'INSCRIPTION | F194: 746
A195: Pr Jean-François MORÈRE | B195: Médecin | C195: AMGEN SAS | D195: 2016-03-11 | E195: REPAS REUNION | F195: 57
A196: Pr Jean-François MORÈRE | B196: Médecin | C196: AMGEN SAS | D196: 2016-03-11 | E196: HEBERGEMENT | F196: 285
A197: Pr Jean-François MORÈRE | B197: Médecin | C197: ROCHE SAS | D197: 2016-04-05 | E197: Repas | F197: 34
A198: Pr Jean-François MORÈRE | B198: Médecin | C198: ROCHE SAS | D198: 2016-06-03 | E198: Hebergement | F198: 250
A199: Pr Jean-François MORÈRE | B199: Médecin | C199: ROCHE SAS | D199: 2016-06-03 | E199: Transport | F199: 6203
A200: Pr Jean-François MORÈRE | B200: Médecin | C200: ROCHE SAS | D200: 2016-06-03 | E200: Inscription | F200: 801
... 61 more rows

Sheet Conventions signées
A1: Bénéficiaire | B1: Type de bénéficiaire | C1: Entreprise | D1: Date | E1: Période | F1: Objet | G1: Montant € | H1: Lieu
A2: Pr Jean-François MORÈRE | B2: Médecin | C2: VIFOR FRANCE SA | D2: 12/01/2013 | E2: 12/01/2013 - | F2: Autre : AUTRE : CONSULTANT SCIENTIFIQUE
A3: Pr Jean-François MORÈRE | B3: Médecin | C3: ROCHE SAS | D3: 18/01/2013 | E3: 18/01/2013 - 18/01/2013 | F3: Autre : Congres / Symposium
A4: Pr Jean-François MORÈRE | B4: Médecin | C4: ROCHE SAS | D4: 18/01/2013 | E4: 18/01/2013 - 19/01/2013 | F4: Autre : Congrès / Symposium
A5: Pr Jean-François MORÈRE | B5: Médecin | C5: AMGEN SAS | D5: 07/03/2013 | E5: 07/03/2013 - 10/03/2013 | F5: Autre : CONGRES/SYMPOSIUM | H5: MIAMI
A6: Pr Jean-François MORÈRE | B6: Médecin | C6: ROCHE SAS | D6: 18/03/2013 | E6: 18/03/2013 - 18/03/2013 | F6: Autre : Autre : [ Reunion professionnelle ]
A7: Pr Jean-François MORÈRE | B7: Médecin | C7: ROCHE SAS | D7: 07/05/2013 | E7: 07/05/2013 - | F7: Autre : Orateur intervenant
A8: Pr Jean-François MORÈRE | B8: Médecin | C8: ROCHE SAS | D8: 30/05/2013 | E8: 30/05/2013 - 07/06/2013 | F8: Autre : Congrès / Symposium | H8: CHICAGO
A9: Pr Jean-François MORÈRE | B9: Médecin | C9: ROCHE SAS | D9: 31/05/2013 | E9: 31/05/2013 - 04/06/2013 | F9: Autre : Congres / Symposium
A10: Pr Jean-François MORÈRE | B10: Médecin | C10: ROCHE SAS | D10: 11/06/2013 | E10: 11/06/2013 - 11/06/2013 | F10: Autre : Autre : [ Reunion professionnelle ]
A11: Pr Jean-François MORÈRE | B11: Médecin | C11: ROCHE SAS | D11: 14/06/2013 | E11: 14/06/2013 - 16/06/2013 | F11: Autre : Autre : [ Reunion professionnelle ]
A12: Pr Jean-François MORÈRE | B12: Médecin | C12: MSD France | D12: 26/06/2013 | E12: 26/06/2013 - 29/06/2013 | F12: Autre : CONVENTION D’HOSPITALITÉ
A13: Pr Jean-François MORÈRE | B13: Médecin | C13: ROCHE SAS | D13: 12/09/2013 | E13: 12/09/2013 - 12/09/2013 | F13: Autre : Autre : [ Orateur / Intervenant ]
A14: Pr Jean-François MORÈRE | B14: Médecin | C14: JANSSEN-CILAG | D14: 26/09/2013 | E14: 26/09/2013 - 26/09/2013 | F14: Autre : CONGRES / SYMPOSIUM
A15: Pr Jean-François MORÈRE | B15: Médecin | C15: JANSSEN-CILAG | D15: 27/09/2013 | E15: 27/09/2013 - 01/10/2013 | F15: Autre : CONGRES / SYMPOSIUM | H15: AMSTERDAM
A16: Pr Jean-François MORÈRE | B16: Médecin | C16: TEVA SANTE SAS | D16: 02/10/2013 | E16: 01/01/2013 - | F16: Autre : PRESTATION CONSEIL SCIENTIF/ PARTICIPATION BOARD
A17: Pr Jean-François MORÈRE | B17: Médecin | C17: ROCHE SAS | D17: 10/10/2013 | E17: 10/10/2013 - 10/10/2013 | F17: Autre : Autre : [ Orateur / Intervenant ]
A18: Pr Jean-François MORÈRE | B18: Médecin | C18: ROCHE SAS | D18: 10/10/2013 | E18: 10/10/2013 - 10/10/2013 | F18: Autre : Autre : [ Manifestation professionnelle ]
A19: Pr Jean-François MORÈRE | B19: Médecin | C19: ROCHE SAS | D19: 13/10/2013 | E19: 27/10/2013 - 30/10/2013 | F19: Autre : congrès / symposium | H19: SYDNEY
A20: Pr Jean-François MORÈRE | B20: Médecin | C20: ROCHE SAS | D20: 31/10/2013 | E20: 14/11/2013 - 15/11/2013 | F20: Autre : congrès / symposium
A21: Pr Jean-François MORÈRE | B21: Médecin | C21: ROCHE SAS | D21: 15/11/2013 | E21: 15/11/2013 - 15/11/2013 | F21: Autre : Autre : [ Orateur / Intervenant ]
A22: Pr Jean-François MORÈRE | B22: Médecin | C22: ROCHE SAS | D22: 31/01/2014 | E22: 31/01/2014 - 02/02/2014 | F22: Autre : Congres / Symposium | H22: MARSEILLE
A23: Pr Jean-François MORÈRE | B23: Médecin | C23: AMGEN SAS | D23: 06/02/2014 | E23: 05/03/2014 - 08/03/2014 | F23: Autre : AUTRE [CONVENTION D HOSPITALITE] | H23: MIAMI
A24: Pr Jean-François MORÈRE | B24: Médecin | C24: Laboratoires Grünenthal SAS | D24: 20/02/2014 | E24: 20/02/2014 - | F24: Autre : REUNION SCIENTIFIQUE
A25: Pr Jean-François MORÈRE | B25: Médecin | C25: PIERRE FABRE MEDICAMENT | D25: 03/03/2014 | E25: 21/03/2014 - | F25: Autre : LETTRE ACCORD
A26: Pr Jean-François MORÈRE | B26: Médecin | C26: PIERRE FABRE MEDICAMENT | D26: 13/03/2014 | E26: 13/03/2014 - | F26: Autre : CONVENTION ORATEUR
A27: Pr Jean-François MORÈRE | B27: Médecin | C27: PIERRE FABRE MEDICAMENT | D27: 19/03/2014 | E27: 28/04/2014 - | F27: Autre : CONTRAT DE CONSULTANT
A28: Pr Jean-François MORÈRE | B28: Médecin | C28: ROCHE SAS | D28: 05/04/2014 | E28: 05/04/2014 - 09/04/2014 | F28: Autre : Congres / Symposium | H28: SAN DIEGO
A29: Pr Jean-François MORÈRE | B29: Médecin | C29: ROCHE SAS | D29: 11/04/2014 | E29: 11/04/2014 - 12/04/2014 | F29: Autre : Congres / Symposium
A30: Pr Jean-François MORÈRE | B30: Médecin | C30: ROCHE SAS | D30: 21/05/2014 | E30: 21/05/2014 - 21/05/2014 | F30: Autre : Autre : [ Reunion professionnelle ]
A31: Pr Jean-François MORÈRE | B31: Médecin | C31: ROCHE SAS | D31: 29/05/2014 | E31: 27/03/2014 - 03/06/2014 | F31: Autre : Autre : [ Orateur / Intervenant ]
A32: Pr Jean-François MORÈRE | B32: Médecin | C32: ROCHE SAS | D32: 10/06/2014 | E32: 10/06/2014 - 10/06/2014 | F32: Autre : Autre : [ Reunion professionnelle ]
A33: Pr Jean-François MORÈRE | B33: Médecin | C33: BOEHRINGER INGELHEIM FRANCE | D33: 17/06/2014 | E33: 17/06/2014 - | F33: Autre : CONSEIL
A34: Pr Jean-François MORÈRE | B34: Médecin | C34: ROCHE SAS | D34: 19/06/2014 | E34: 19/06/2014 - 19/06/2014 | F34: Autre : Autre : [ Reunion professionnelle ]
A35: Pr Jean-François MORÈRE | B35: Médecin | C35: ROCHE SAS | D35: 04/09/2014 | E35: 04/09/2014 - 06/09/2014 | F35: Autre : Congrès / Symposium | H35: SAN FRANCISCO
A36: Pr Jean-François MORÈRE | B36: Médecin | C36: ROCHE SAS | D36: 08/10/2014 | E36: 08/10/2014 - 08/10/2014 | F36: Autre : Autre : [ Reunion professionnelle ]
A37: Pr Jean-François MORÈRE | B37: Médecin | C37: BOEHRINGER INGELHEIM FRANCE | D37: 17/10/2014 | E37: 17/10/2014 - 18/10/2014 | F37: Autre : AUTRE : PARTICIPATION A MANIFESTATION SCIENTIFIQUE | H37: MARSEILLE
A38: Pr Jean-François MORÈRE | B38: Médecin | C38: ROCHE SAS | D38: 30/10/2014 | E38: 30/10/2014 - 30/10/2014 | F38: Autre : Autre : [ Réunion professionnelle ]
A39: Pr Jean-François MORÈRE | B39: Médecin | C39: BOEHRINGER INGELHEIM FRANCE | D39: 01/12/2014 | E39: 02/04/2014 - 31/12/2014 | F39: Autre : CONSEIL
A40: Pr Jean-François MORÈRE | B40: Médecin | C40: ROCHE SAS | D40: 05/01/2015 | E40: 13/03/2015 - 14/03/2015 | F40: Autre : Autre : [ Orateur / Intervenant ]
A41: Pr Jean-François MORÈRE | B41: Médecin | C41: AMGEN SAS | D41: 20/01/2015 | E41: 24/02/2015 - 01/03/2015 | F41: Autre : AUTRE [CONVENTION D HOSPITALITE] | H41: MIAMI
A42: Pr Jean-François MORÈRE | B42: Médecin | C42: ROCHE SAS | D42: 13/03/2015 | E42: 13/03/2015 - 14/03/2015 | F42: Autre : Congres / Symposium
A43: Pr Jean-François MORÈRE | B43: Médecin | C43: ROCHE SAS | D43: 29/05/2015 | E43: 29/05/2015 - 02/06/2015 | F43: Autre : Congres / Symposium | H43: CHICAGO
A44: Pr Jean-François MORÈRE | B44: Médecin | C44: CELGENE | D44: 29/05/2015 | E44: 29/05/2015 - 29/05/2015 | F44: Autre : CONSEIL | H44: CHICAGO
A45: Pr Jean-François MORÈRE | B45: Médecin | C45: ROCHE SAS | D45: 01/06/2015 | E45: 01/06/2015 - 04/04/2016 | F45: Autre : Autre : [ Expert ] | H45: CHICAGO
A46: Pr Jean-François MORÈRE | B46: Médecin | C46: ROCHE SAS | D46: 05/06/2015 | E46: 01/09/2014 - 30/09/2015 | F46: Autre : Autre : [ Expert ]
A47: Pr Jean-François MORÈRE | B47: Médecin | C47: Lilly France SAS | D47: 17/06/2015 | E47: 17/06/2015 - 17/06/2015 | F47: Contrat d'expert scientifique, contrat dans le cadre d'une recherche, contrat de consultant | G47: 4968 | H47: AMSTERDAM
A48: Pr Jean-François MORÈRE | B48: Médecin | C48: PIERRE FABRE MEDICAMENT | D48: 23/07/2015 | E48: 23/07/2015 - | F48: Autre : CONTRAT DE CONSULTANT
A49: Pr Jean-François MORÈRE | B49: Médecin | C49: PIERRE FABRE MEDICAMENT | D49: 23/07/2015 | E49: 28/04/2015 - | F49: Autre : CONTRAT DE CONSULTANT
A50: Pr Jean-François MORÈRE | B50: Médecin | C50: ROCHE SAS | D50: 14/09/2015 | E50: 20/09/2015 - 20/09/2016 | F50: Autre : Autre : [ Expert ]
A51: Pr Jean-François MORÈRE | B51: Médecin | C51: Lilly France SAS | D51: 15/10/2015 | E51: 15/10/2015 - 15/10/2015 | F51: Autre : AUTRE : [CONTRAT D'ORATEUR]
A52: Pr Jean-François MORÈRE | B52: Médecin | C52: ROCHE SAS | D52: 17/11/2015 | E52: 17/11/2015 - 17/11/2015 | F52: Autre : Autre : [ Reunion professionnelle ]
A53: Pr Jean-François MORÈRE | B53: Médecin | C53: BOEHRINGER INGELHEIM FRANCE | D53: 20/11/2015 | E53: 20/11/2015 - 21/11/2015 | F53: Hospitalité | H53: MARSEILLE
A54: Pr Jean-François MORÈRE | B54: Médecin | C54: BOEHRINGER INGELHEIM FRANCE | D54: 26/11/2015 | E54: 26/11/2015 - | F54: Autre : AUTRE : ORATEUR
A55: Pr Jean-François MORÈRE | B55: Médecin | C55: ROCHE SAS | D55: 01/12/2015 | E55: 16/12/2015 - 16/12/2015 | F55: Autre : Autre : [ Orateur / Intervenant ]
A56: Pr Jean-François MORÈRE | B56: Médecin | C56: ROCHE SAS | D56: 04/12/2015 | E56: 04/12/2015 - 31/01/2017 | F56: Autre : Autre : [ Expert ]
A57: Pr Jean-François MORÈRE | B57: Médecin | C57: ROCHE SAS | D57: 16/12/2015 | E57: 16/12/2015 - 16/12/2015 | F57: Autre : Autre : [ Reunion professionnelle ]
A58: Pr Jean-François MORÈRE | B58: Médecin | C58: PPD FRANCE SAS | D58: 18/12/2015 | E58: 18/12/2015 - 16/12/2020 | F58: Recherche scientifique
A59: Pr Jean-François MORÈRE | B59: Médecin | C59: ROCHE SAS | D59: 08/02/2016 | E59: 08/02/2016 - 08/02/2016 | F59: Autre : Autre : [ Manifestation professionnelle ]
A60: Pr Jean-François MORÈRE | B60: Médecin | C60: AMGEN SAS | D60: 10/02/2016 | E60: 08/03/2016 - 13/03/2016 | F60: Autre : AUTRE [CONVENTION D HOSPITALITE] | H60: MIAMI
A61: Pr Jean-François MORÈRE | B61: Médecin | C61: ROCHE SAS | D61: 31/03/2016 | E61: 03/06/2016 - 06/06/2016 | F61: Autre : Autre : [ Orateur / Intervenant ] | H61: CHICAGO
A62: Pr Jean-François MORÈRE | B62: Médecin | C62: ROCHE SAS | D62: 01/04/2016 | E62: 01/04/2016 - 02/04/2016 | F62: Autre : Autre : [ Reunion professionnelle ]
A63: Pr Jean-François MORÈRE | B63: Médecin | C63: ROCHE SAS | D63: 05/04/2016 | E63: 05/04/2016 - 05/04/2016 | F63: Autre : Autre : [ Reunion professionnelle ]
A64: Pr Jean-François MORÈRE | B64: Médecin | C64: ROCHE SAS | D64: 03/06/2016 | E64: 03/06/2016 - 07/06/2016 | F64: Autre : Congres / Symposium | H64: CHICAGO
A65: Pr Jean-François MORÈRE | B65: Médecin | C65: ROCHE SAS | D65: 14/06/2016 | E65: 14/06/2016 - 14/06/2016 | F65: Autre : Autre : [ Reunion professionnelle ]
A66: Pr Jean-François MORÈRE | B66: Médecin | C66: ROCHE SAS | D66: 11/07/2016 | E66: 01/10/2015 - 30/10/2016 | F66: Autre : Autre : [ Expert ]
A67: Pr Jean-François MORÈRE | B67: Médecin | C67: ASTRAZENECA | D67: 03/11/2016 | E67: 03/11/2016 - | F67: Formation
A68: Pr Jean-François MORÈRE | B68: Médecin | C68: BOEHRINGER INGELHEIM FRANCE | D68: 01/12/2016 | E68: 01/12/2016 - 01/12/2016 | F68: Contrat d'intervenant à une manifestation / orateur | G68: 1000
A69: Pr Jean-François MORÈRE | B69: Médecin | C69: ROCHE SAS | D69: 07/12/2016 | E69: 01/01/2017 - 31/12/2017 | F69: Contrat d'expert scientifique, contrat dans le cadre d'une recherche, contrat de consultant | G69: 6600
A70: Pr Jean-François MORÈRE | B70: Médecin | C70: ROCHE SAS | D70: 23/02/2017 | E70: 23/02/2017 - 23/02/2017 | F70: Hospitalité
A71: Pr Jean-François MORÈRE | B71: Médecin | C71: BRISTOL-MYERS SQUIBB | D71: 28/03/2017 | E71: 28/03/2017 - | F71: Autre : Orateur
A72: Pr Jean-François MORÈRE | B72: Médecin | C72: Laboratoires ETHYPHARM | D72: 18/05/2017 | E72: 18/05/2017 - 18/05/2017 | F72: Hospitalité
A73: Pr Jean-François MORÈRE | B73: Médecin | C73: ROCHE SAS | D73: 02/06/2017 | E73: 02/06/2017 - 06/06/2017 | F73: Hospitalité | G73: 6317
A74: Pr Jean-François MORÈRE | B74: Médecin | C74: ROCHE SAS | D74: 13/06/2017 | E74: 13/06/2017 - 13/06/2017 | F74: Hospitalité
A75: Pr Jean-François MORÈRE | B75: Médecin | C75: ROCHE SAS | D75: 27/06/2017 | E75: 27/06/2017 - 29/12/2017 | F75: Hospitalité
A76: Pr Jean-François MORÈRE | B76: Médecin | C76: ROCHE SAS | D76: 27/06/2017 | E76: 27/06/2017 - 29/12/2017 | F76: Contrat d'expert scientifique, contrat dans le cadre d'une recherche, contrat de consultant
A77: Pr Jean-François MORÈRE | B77: Médecin | C77: ASTRAZENECA | D77: 06/07/2017 | E77: 06/07/2017 - | F77: Hospitalité | G77: 25
A78: Pr Jean-François MORÈRE | B78: Médecin | C78: A+A | D78: 07/09/2017 | E78: 07/09/2017 - | F78: Enquête / Etude / Etude de marché (hors recherche)
A79: Pr Jean-François MORÈRE | B79: Médecin | C79: ROCHE SAS | D79: 08/09/2017 | E79: 08/09/2017 - 12/09/2017 | F79: Hospitalité | G79: 1858 | H79: MADRID
A80: Pr Jean-François MORÈRE | B80: Médecin | C80: AMGEN SAS | D80: 21/09/2017 | E80: 20/11/2017 - 21/11/2017 | F80: Hospitalité
A81: Pr Jean-François MORÈRE | B81: Médecin | C81: PIERRE FABRE MEDICAMENT | D81: 02/10/2017 | E81: 02/10/2017 - | F81: Contrat d'intervenant à une manifestation / orateur
A82: Pr Jean-François MORÈRE | B82: Médecin | C82: A+A | D82: 23/10/2017 | E82: 23/10/2017 - | F82: Enquête / Etude / Etude de marché (hors recherche)
A83: Pr Jean-François MORÈRE | B83: Médecin | C83: ROCHE SAS | D83: 27/11/2017 | E83: 21/11/2017 - 30/11/2017 | F83: Contrat d'expert scientifique, contrat dans le cadre d'une recherche, contrat de consultant
A84: Pr Jean-François MORÈRE | B84: Médecin | C84: SHIRE France S.A. | D84: 28/11/2017 | E84: 28/11/2017 - 28/11/2017 | F84: Hospitalité
A85: Pr Jean-François MORÈRE | B85: Médecin | C85: ROCHE SAS | D85: 05/12/2017 | E85: 05/12/2017 - 09/12/2017 | F85: Hospitalité | G85: 20542 | H85: SAN ANTONIO
F87: TOTAL | G87: =SUM(G2:G86) -> 41310
C89: ROCHE SAS | G89: =SUMIF(C2:C85,"ROCHE SAS",G2:G85) -> 35317
C90: Lilly France SAS | G90: =SUMIF(C3:C86,"Lilly France SAS",G3:G86) -> 4968
C91: BOEHRINGER INGELHEIM France | G91: =SUMIF(C4:C87,"BOEHRINGER INGELHEIM FRANCE",G4:G87) -> 1000

Sheet Rémunérations
C1: Montant
A2: ROCHE SAS
B3: Médecin
A4: MORERE JEAN FRANCOIS
B5: 2015-12-04 | C5: 5000
A6: ROCHE SAS
B7: Médecin
A8: MORERE JEAN FRANCOIS
B9: 2016-01-19 | C9: 900
A10: ROCHE SAS
B11: Médecin
A12: MORERE JEAN FRANCOIS
B13: 2016-02-16 | C13: 340
A14: ROCHE SAS
B15: Médecin
A16: MORERE JEAN FRANCOIS
B17: 2016-07-19 | C17: 2000
A18: ROCHE SAS
B19: Médecin
A20: MORERE JEAN FRANCOIS
B21: 2016-07-19 | C21: 400
A22: ROCHE SAS
B23: Médecin
A24: MORERE JEAN FRANCOIS
B25: 2016-11-16 | C25: 3000
A26: ROCHE SAS
B27: Médecin
A28: MORERE JEAN FRANCOIS
B29: 2016-12-06 | C29: 2000
A30: ROCHE SAS
B31: Médecin
A32: MORERE JEAN FRANCOIS
B33: 2017-01-31 | C33: 1800
A34: BOEHRINGER INGELHEIM FRANCE
B35: Médecin
A36: MORERE JEAN FRANCOIS
B37: 2017-04-13 | C37: 1000
A38: BRISTOL-MYERS SQUIBB
B39: Médecin
A40: MORERE JEAN FRANCOIS
B41: 2017-04-19 | C41: 600
A42: ROCHE SAS
B43: Médecin
A44: MORERE JEAN FRANCOIS
B45: 2017-05-23 | C45: 1200
A46: ROCHE SAS
B47: Médecin
A48: MORERE JEAN FRANCOIS
B49: 2017-07-11 | C49: 700
A50: ROCHE SAS
B51: Médecin
A52: MORERE JEAN FRANCOIS
B53: 2017-07-11 | C53: 3000
A54: ROCHE SAS
B55: Médecin
A56: MORERE JEAN FRANCOIS
B57: 2017-09-05 | C57: 3600
A58: A+A
B59: Médecin
A60: MORERE JEAN FRANCOIS
B61: 2017-09-07 | C61: 85
A62: A+A
B63: Médecin
A64: MORERE JEAN FRANCOIS
B65: 2017-10-23 | C65: 200
B67: TOTAL : | C67: =SUM(C2:C66) -> 25825
D69: % | E69: Cumul%
A70: ROCHE SAS | C70: =SUM(C5:C33)+SUM(C45:C57) -> 23940 | D70: =C70/C$67 -> 0.9270087125 | E70: =D70 -> 0.9270087125
A71: BOEHRINGER INGELHEIM France | C71: =C37 -> 1000 | D71: =C71/C$67 -> 0.03872216844 | E71: =D71+E70 -> 0.9657308809
A72: BRISTOL-MYERS SQUIBB | C72: =C41 -> 600 | D72: 0.02323330106 | E72: =D72+E71 -> 0.988964182

Sheet AVANTAGES
A1: TYPE_AVTG dans Transparence.sante.gouv.fr | B1: TYPE_AVTG (libellé de regroupement)
A2: [Autre] inscription congrès | B2: Inscription
A3: [HEBERGEMENT] | B3: Hébergement
A4: [HOSPITALITE] | B4: Hospitalité
A5: [REPAS] | B5: Repas
A6: [TRANSPORT] | B6: Transport
A7: AUTRE | B7: Autre
A8: Autre : [ Forfait journée détude ] | B8: Autre
A9: Autre : [ Forfait journée détude ou forfait congrès ] | B9: Congrès
A10: Autre : [ Inscription ] | B10: Inscription
A11: AUTRE : [DEDOMMAGEMENT] | B11: Autre
A12: Autre : [DEJEUNER REUNION] | B12: Repas
A13: AUTRE : [DONS] | B13: Autre
A14: Autre : [ECHANTILLON] | B14: Autre
A15: Autre : [Forfait] | B15: Autre
A16: Autre : [Formation] | B16: Autre
A17: Autre : [FRAIS D'INSCRIPTION] | B17: Inscription
A18: Autre : [HONORAIRE] | B18: Autre
A19: Autre : [Honoraires PdS] | B19: Autre
A20: Autre : [Honoraires] | B20: Repas
A21: Autre : [Hospitalité Evenement Scientifique] | B21: Hospitalité
A22: AUTRE : [HOSPITALITE] | B22: Hospitalité
A23: AUTRE : [INSCRIPTION CONGRÈS SCIENTIFIQUE] | B23: Inscription
A24: Autre : [Inscription Evenement Scientifique] | B24: Inscription
A25: Autre : [Inscription] | B25: Inscription
A26: Autre : [note de frais] | B26: Autre
A27: AUTRE : [PARTICIPATION EVENEMENT SCIENTIFIQUE] | B27: Congrès
A28: AUTRE : [PAUSE] | B28: Autre
A29: Autre : [Remboursement de frais] | B29: Autre
A30: AUTRE : [REMBOURSEMENT FRAIS LOGISTIQUE] | B30: Autre
A31: Autre : [Remis Publication scientifique] | B31: Autre
A32: Autre : [rémunération] | B32: Repas
A33: Autre : [Restauration] | B33: Repas
A34: Autre : cheque | B34: Autre
A35: AUTRE : CONGRES | B35: Autre
A36: AUTRE : DEJEUNER | B36: Repas
A37: AUTRE : DEUX PAUSES | B37: Repas
A38: AUTRE : DINER | B38: Repas
A39: autre : enquête internet | B39: Autre
A40: AUTRE : FORMATION MEDICALE CONTINUE | B40: Autre
A41: AUTRE : FRAIS DE RESTAURATION / RP | B41: Repas
A42: Autre : Frais d'inscription Congres | B42: Inscription
A43: Autre : Frais d'inscription Congrès | B43: Inscription
A44: AUTRE : HONORAIRE | B44: Autre
A45: AUTRE : HONORAIRE CONFERENCE TELEPHONIQUE | B45: Autre
A46: AUTRE : HONORAIRES | B46: Autre
A47: AUTRE : HONORAIRES CONFERENCE TELEPHONIQUE | B47: Autre
A48: AUTRE : HONORAIRES ETUDES | B48: Autre
A49: AUTRE : HONORAIRES REUNION | B49: Autre
A50: AUTRE : HOSPITALITE CONGRES | B50: Congrès
A51: AUTRE : HOSPITALITE STAFF | B51: Hospitalité
A52: Autre : Indemnite | B52: Autre
A53: Autre : Inscription | B53: Inscription
A54: AUTRE : RELATIONS NORMALES DE TRAVAIL | B54: Autre
A55: AUTRE : REMBOURSEMENT DE FRAIS | B55: Autre
A56: AUTRE : REMUNERATION | B56: Autre
A57: AUTRE : REPAS PROFESSIONNEL | B57: Repas
A58: Autre : repas STAFF | B58: Repas
A59: AUTRE : REUNION | B59: Autre
A60: AUTRE : RNT | B60: Autre
A61: AUTRE : STAFF | B61: Repas
A62: AUTRE [DINER REUNION] | B62: Repas
A63: AUTRE [DONS] | B63: Autre
A64: AUTRE [ENQUETE] | B64: Autre
A65: AUTRE [FRAIS D INSCRIPTION] | B65: Inscription
A66: AUTRE [INSCRIPTION] | B66: Inscription
A67: AUTRE [PAUSE] | B67: Autre
A68: AUTRE [RESTAURATION STAFF] | B68: Repas
A69: AUTRE: [DON] | B69: Autre
A70: AUTRE: [DONS] | B70: Autre
A71: Autre: [Enquête] | B71: Autre
A72: AUTRE: [HEBERGEMENT ET RESTAURATIONS] | B72: Hébergement
A73: AUTRE: [INSCRIPTION] | B73: Inscription
A74: AUTRE: COLLATION | B74: Repas
A75: AUTRE: COLLATION/COLLATION | B75: Repas
A76: AUTRE: CONGRES/COCKTAIL | B76: Repas
A77: AUTRE: CONGRES/INSCRIPTION | B77: A définir
A78: AUTRE: DEJEUNER | B78: Repas
A79: AUTRE: DEJEUNER/DINER | B79: Repas
A80: AUTRE: DEJEUNER/RESTO ITALIEN BON | B80: Repas
A81: Autre: Don | B81: Autre
A82: AUTRE: HOSPITALITE | B82: Hospitalité
A83: AUTRE: INDEMNITE | B83: Autre
A84: AUTRE: INSCRIPTION | B84: Inscription
A85: AUTRE: SOIREE | B85: Hospitalité
A86: AUTRE: SOIREE/SOIREE | B86: Autre
A87: AUTRE: STAFF | B87: Repas
A88: AUTRE: VISITE/(2 X GO-ON 25MG) | B88: Autre
A89: AUTRE: VISITE/(3 X GO-ON 25MG) | B89: Autre
A90: AUTRE: VISITE/GO-ON 25MG | B90: Autre
A91: AUTRE:[FRAIS D'INSCRIPTION] | B91: Inscription
A92: Autre[HONORAIRES] | B92: Autre
A93: AUTRES | B93: Autre
A94: AUTRES: INSCRIPTION | B94: Inscription
A95: CADEAUX | B95: Autre
A96: COLLATION | B96: Repas
A97: COLLATION/COLLATION | B97: Repas
A98: CONGRES/ACHEMINEMENT (AVION) | B98: Transport
A99: CONGRES/DEJEUNERS / DINERS (4) | B99: Repas
A100: CONGRES/HEBERGEMENT | B100: Hébergement
A101: CONGRES/HEBERGEMENT (1 NUITEES) | B101: Hébergement
A102: CONGRES/HEBERGEMENT (2 NUITEES) | B102: Hébergement
A103: CONGRES/HEBERGEMENT 3 NUITS | B103: Hébergement
A104: CONGRES/INSCRIPTION | B104: Inscription
A105: CONGRES/REPAS 12.06.13 | B105: Repas
A106: CONGRES/REPAS 13.06.13 | B106: Repas
A107: CONGRES/REPAS 14.06.13 | B107: Repas
A108: CONGRES/REPAS X3 | B108: Repas
A109: conseil | B109: Conseil
A110: Conseil - Intervention Ponctuelle | B110: Autre
A111: Dédommagement | B111: Autre
A112: DEJEUNER | B112: Repas
A113: déjeuner | B113: Repas
A114: DEJEUNER/DEJEUNER | B114: Repas
A115: DEJEUNER/REPAS | B115: Repas
A116: Déplacement | B116: Transport
A117: DINER | B117: Repas
A118: Dîner | B118: Repas
A119: DONS | B119: Autre
A120: Dons de fonctionnement | B120: Autre
A121: DONS DE FONCTIONNEMENT / RECHERCHE | B121: Autre
A122: DONS DE MATERIEL | B122: Autre
A123: Droits d'auteur pris en charge par UCB | B123: Autre
A124: enquête | B124: Autre
A125: EPU | B125: Repas
A126: EPU/DINER | B126: Repas
A127: EPU/EPU | B127: Congrès
A128: EPU/REPAS | B128: Repas
A129: FRAIS DE BOUCHE | B129: Repas
A130: Frais de dÃƒÂ©placement | B130: Transport
A131: FRAIS DE DEPLACEMENT | B131: Transport
A132: FRAIS D'HOSPITALITÉ | B132: Hospitalité
A133: FRAIS D'INSCRIPTION | B133: Inscription
A134: Frais d'inscription à une réunion scientifique | B134: Inscription
A135: Frais remboursés (transport) | B135: Transport
A136: H‚bergement | B136: Hébergement
A137: HÃ©bergement | B137: Hébergement
A138: HÃ‰BERGEMENT | B138: Hébergement
A139: HÃƒÂ©bergement | B139: Hébergement
A140: HEBERGEMENT | B140: Hospitalité
A141: HEBERGEMENT | B141: Hébergement
A142: Hébergement | B142: Hébergement
A143: Hébérgement | B143: Hébergement
A144: HEBERGEMENT SUR TOUTE LA DUREE DU CONGRES | B144: Hébergement
A145: Hébergement, restauration, transport | B145: Hospitalité
A146: Honoraire + hospitalité | B146: Hospitalité
A147: HONORAIRE HCP | B147: Autre
A148: HONORAIRES | B148: Autre
A149: Honoraires de consultant | B149: Conseil
A150: HOSPITALITE | B150: Hospitalité
A151: HOSPITALITÉ | B151: Hospitalité
A152: HOSPITALITE - RELATIONS NORMALES DE TRAVAIL | B152: Hospitalité
A153: Hospitalité [ transport/repas/Hébergement] | B153: Hospitalité
A154: HOSPITALITE CONGRES | B154: Hospitalité
A155: Hospitalité Congrès Symposium | B155: Congrès
A156: HOSPITALITE REUNION PROFESSIONNELLE | B156: Hospitalité
A157: HOSPITALITE SITES PIERRE FABRE | B157: Hospitalité
A158: HOSPITALITE STAFF | B158: Hospitalité
A159: INCRIPTION | B159: Inscription
A160: INDEMNITE | B160: Autre
A161: INSCRIPTION | B161: Inscription
A162: INSCRIPTION CONGRES | B162: Inscription
A163: Inscription congrès | B163: Congrès
A164: Inscription Evenement Scientifique | B164: Inscription
A165: INSCRIPTION_REPAS_TRANSPORT_HEBERGEMENT | B165: Hospitalité
A166: INVITATIONS | B166: Autre
A167: Logement | B167: Hébergement
A168: OPPORTUNITE | B168: Autre
A169: Participation Evenement Scientifique | B169: Congrès
A170: PAUSE | B170: Autre
A171: Prestation en tant que formateur et orateur | B171: Autre
A172: REPAS | B172: Repas
A173: Repas | B173: Repas
A174: répas | B174: Repas
A175: Repas & Voyage de Train | B175: Hospitalité
A176: REPAS CONGRES | B176: Repas
A177: REPAS FORMATION | B177: Repas
A178: REPAS IMPROMPTU | B178: Repas
A179: REPAS MANIFESTATION DE FORMATION | B179: Repas
A180: REPAS PROFESSIONNEL | B180: Repas
A181: REPAS RELATION NORMALE DE TRAVAIL | B181: Repas
A182: REPAS REUNION | B182: Repas
A183: REPAS REUNION HOSPITALIERE | B183: Repas
A184: REPAS RÉUNION HOSPITALIÈRE | B184: Repas
A185: REPAS REUNION SCIENTIFIQUE | B185: Repas
A186: REPAS RÉUNION SCIENTIFIQUE | B186: Repas
A187: REPAS SUR TOUTE LA DUREE DU CONGRES | B187: Repas
A188: Restauration | B188: Repas
A189: Restauration / Dïner | B189: Repas
A190: Restauration / Pauses | B190: Repas
A191: SOIREE | B191: Repas
A192: SOIREE/REPAS | B192: Repas
A193: SOIREE/RP | B193: Autre
A194: STAFF | B194: Autre
A195: Taxonomie EFPIA | B195: Autre
A196: TRANBSPORT | B196: Transport
A197: TRANSFERT | B197: Transport
A198: TRANSFERT-REPAS(DINER) | B198: Repas
A199: Transport | B199: Transport
A200: TRANSPORT ALLER/RETOUR -REPAS(DINER-DEJEUNER-PAUSES)-HEBERGEMENT-TRANSFERT | B200: Hospitalité
... 6 more rows

Sheet CONVENTIONS
A1: TYPE_CONVENTION dans Transparence.sante.gouv.fr | B1: TYPE_CONVENTION (libellé de regroupement)
A2: [AUTRE] : [COLLABORATION SCIENTIFIQUE] | B2: Expert
A3: [AUTRE] : [CONVENTION HOSPITALITE] | B3: Hospitalité
A4: [AUTRE] : [CONVENTION HOSPITALITE] | B4: Hospitalité
A5: [BOARD EXPERTS] | B5: Réunion de « Board »
A6: [FORMATION] | B6: Autre
A7: [MARKETING] | B7: Etude de marché
A8: [MARKETING] | B8: Etude de marché
A9: [ORATEUR] | B9: Orateur
A10: [ORATEURS MODERATEURS] | B10: Orateur
A11: [ORATEURS MODERATEURS] | B11: Orateur
A12: [REUNION INFORMATION MEDICALE] | B12: Réunion professionnelle
A13: 26E CONGRES FRANÇAIS DE RHUMATOLOGIE | B13: Réunion professionnelle
A14: ACCORD DE COOPERATION | B14: Expert
A15: AMERICAN COLLEGE OF RHEUMATHOLOGY ACR/ARHP ANNUAL MEETING 2012 | B15: Réunion professionnelle
A16: ANNUAL EUROPEAN CONGRESS OF RHEUMATOLOGY | B16: Réunion professionnelle
A17: ASSISES BARCELONE | B17: Réunion professionnelle
A18: ATELIERS SIMS | B18: Réunion professionnelle
A19: AUTRE | B19: Autre
A20: AUTRE | B20: Autre
A21: Autre : | B21: Autre
A22: Autre : "CONTRAT D'ORATEUR" | B22: Orateur
A23: Autre : [ Collaboration Scientifique ] | B23: Expert
A24: Autre : [ Collaboration Scientifique ] | B24: Expert
A25: AUTRE : [ CONSEIL / EXPERTISE SCIENTIFIQUE ] | B25: Conseil
A26: Autre : [ EPU ] | B26: Réunion professionnelle
A27: Autre : [ EPU ] | B27: Réunion professionnelle
A28: Autre : [ Expert ] | B28: Expert
A29: Autre : [ Expert ] | B29: Expert
A30: AUTRE : [ HOSPITALITE ] | B30: Hospitalité
A31: AUTRE : [ HOSPITALITE ] | B31: Hospitalité
A32: Autre : [ hospitalité ] | B32: Hospitalité
A33: Autre : [ hospitalité liée à une manifestation scientifique ] | B33: Hospitalité
A34: Autre : [ hospitalité liée à une manifestation scientifique ] | B34: Hospitalité
A35: Autre : [ Manifestation professionnelle ] | B35: Réunion professionnelle
A36: Autre : [ Manifestation professionnelle ] | B36: Réunion professionnelle
A37: Autre : [ Orateur / Intervenant ] | B37: Orateur
A38: Autre : [ Orateur / Intervenant ] | B38: Orateur
A39: Autre : [ Orateur ] | B39: Orateur
A40: Autre : [ Partenariat ] | B40: Autre
A41: Autre : [ Prestation ] | B41: Conseil
A42: Autre : [ R‚union professionnelle ] | B42: Réunion professionnelle
A43: Autre : [ R‚union professionnelle ] | B43: Réunion professionnelle
A44: Autre : [ Runion professionnelle ] | B44: Réunion professionnelle
A45: Autre : [ Runion professionnelle ] | B45: Réunion professionnelle
A46: Autre : [ Reunion professionnelle ] | B46: Réunion professionnelle
A47: Autre : [ Réunion professionnelle ] | B47: Réunion professionnelle
A48: Autre : [ Reunion professionnelle ] | B48: Réunion professionnelle
A49: Autre : [ Réunion professionnelle ] | B49: Réunion professionnelle
A50: Autre : [AUTRE] : [CONVENTION HOSPITALITE] | B50: Hospitalité
A51: Autre : [BOARD EXPERTS] | B51: Expert
A52: Autre : [collaboration scientifique] | B52: Expert
A53: Autre : [Communication scientifique] | B53: Expert
A54: Autre : [Communication scientifique] | B54: Conseil
A55: Autre : [Consultant (HCP)] | B55: Conseil
A56: Autre : [Consultant (HCP)] | B56: Conseil
A57: Autre : [Consultant] | B57: Conseil
A58: Autre : [Contrat autre] | B58: Autre
A59: Autre : [Contrat autre] | B59: Autre
A60: AUTRE : [CONTRAT DE COLLABORATION SCIENTIFIQUE] | B60: Expert
A61: AUTRE : [CONTRAT DE COLLABORATION SCIENTIFIQUE] | B61: Expert
A62: AUTRE : [CONTRAT DE CONSEIL & PRESTATION] | B62: Conseil
A63: AUTRE : [CONTRAT DE CONSEIL & PRESTATION] | B63: Conseil
A64: Autre : [Contrat de consultant] | B64: Conseil
A65: AUTRE : [CONTRAT DE PARTENARIAT - LOCATION DE STAND] | B65: Réunion professionnelle
A66: AUTRE : [CONTRAT DE PARTENARIAT - LOCATION DE STAND] | B66: Réunion professionnelle
A67: AUTRE : [CONTRAT DE PARTENARIAT] | B67: Autre
A68: AUTRE : [CONTRAT D'ORATEUR] | B68: Orateur
A69: AUTRE : [CONTRAT D'ORATEUR] | B69: Orateur
A70: Autre : [CONTRAT ORATEUR] | B70: Orateur
A71: Autre : [CONTRAT_DE_PRESTATIONS_DE_SERVICES] | B71: Conseil
A72: AUTRE : [CONVENTION D HOSPITALITE] | B72: Hospitalité
A73: AUTRE : [CONVENTION D HOSPITALITE] | B73: Hospitalité
A74: Autre : [Convention d’Hospitalité] | B74: Hospitalité
A75: Autre : [Convention de consultant] | B75: Conseil
A76: Autre : [CONVENTION D'HOSPITALITE] | B76: Hospitalité
A77: Autre : [Convention d'Hospitalité] | B77: Hospitalité
A78: Autre : [CONVENTION D'HOSPITALITE] | B78: Hospitalité
A79: Autre : [Convention d'hospitalité] | B79: Hospitalité
A80: AUTRE : [CONVENTION HOSPITALITE] | B80: Hospitalité
A81: Autre : [Convention Orateur] | B81: Orateur
A82: AUTRE : [CONVENTION SANS REMUNERATION]. | B82: Autre
A83: AUTRE : [DONS] | B83: Autre
A84: Autre : [entretien] | B84: Etude de marché
A85: Autre : [entretien] | B85: Etude de marché
A86: Autre : [Espace publicitaire] | B86: Autre
A87: Autre : [Espace publicitaire] | B87: Autre
A88: AUTRE : [ETUDE CLINIQUE] | B88: Recherche Clinique
A89: Autre : [EXPERT CONSULTANT] | B89: Expert
A90: Autre : [Expertise] | B90: Expert
A91: Autre : [Face face] | B91: Autre
A92: AUTRE : [HOSPITALITÉ EVENEMENT SCIENTIFIQUE] | B92: Hospitalité
A93: Autre : [Hospitalité Evenement] | B93: Hospitalité
A94: AUTRE : [HOSPITALITE EVENEMENT] | B94: Hospitalité
A95: Autre : [Hospitalité Evenement] | B95: Hospitalité
A96: Autre : [Hospitalité Genzyme] | B96: Hospitalité
A97: Autre : [Hospitalité] | B97: Hospitalité
A98: AUTRE : [INTERVENANT] | B98: A définir
A99: AUTRE : [INTERVENANT] | B99: Orateur
A100: Autre : [Invitation individuelle] | B100: Autre
A101: Autre : [Invitation individuelle] | B101: Autre
A102: Autre : [Location de stand / Congrès / Autre] | B102: Réunion professionnelle
A103: Autre : [Marketing] | B103: Etude de marché
A104: Autre : [Marketing] | B104: Etude de marché
A105: Autre : [Opération SA/Journée-Soirée] | B105: Autre
A106: Autre : [Opérations Genzyme] | B106: Autre
A107: Autre : [Orateur] | B107: Orateur
A108: Autre : [Orateur] | B108: Orateur
A109: Autre : [ORATEURS MODERATEURS] | B109: Orateur
A110: AUTRE : [PARTENARIAT] | B110: Autre
A111: AUTRE : [PARTICIPATION RÉUNION SCIENTIFIQUE] | B111: Réunion professionnelle
A112: AUTRE : [PARTICIPATION RÉUNION SCIENTIFIQUE] | B112: Réunion professionnelle
A113: AUTRE : [PARTICIPATION R�ION SCIENTIFIQUE] | B113: Réunion professionnelle
A114: AUTRE : [PARTICIPATION R�ION SCIENTIFIQUE] | B114: Réunion professionnelle
A115: AUTRE : [PRESTATION DE SERVICE] | B115: Conseil
A116: Autre : [Recherche biomédicale] | B116: Recherche Clinique
A117: Autre : [Recherche biomédicale] | B117: Recherche Clinique
A118: Autre : [Recherche/Développement] | B118: Recherche Clinique
A119: Autre : [Recherche/Développement] | B119: Recherche Clinique
A120: Autre : [Rédaction d'articles scientifiques] | B120: Rédacteur
A121: Autre : [Repas] | B121: Hospitalité
A122: Autre : [Réunion] | B122: Réunion professionnelle
A123: Autre : [Réunion] | B123: Réunion professionnelle
A124: Autre : [RP Prédéclarée Hospitalité] | B124: Hospitalité
A125: AUTRE : [RP Table ronde actu Rhumatologie] | B125: Réunion professionnelle
A126: AUTRE : [RP TFI] | B126: Orateur
A127: Autre : [STAFF] | B127: Réunion professionnelle
A128: Autre : [STAFF] | B128: Réunion professionnelle
A129: AUTRE : [STAND/TABLE] | B129: Réunion professionnelle
A130: Autre : Accord d'Orateur | B130: Orateur
A131: Autre : Accord d'Orateur | B131: Orateur
A132: Autre : Auteur - rédacteur | B132: Rédacteur
A133: Autre : AUTRE | B133: Autre
A134: Autre : AUTRE | B134: Autre
A135: Autre : AUTRE / HOSPITALITES | B135: Hospitalité
A136: Autre : AUTRE : [ CONSEIL / EXPERTISE SCIENTIFIQUE ] | B136: Conseil
A137: Autre : Autre : [ EPU ] | B137: Réunion professionnelle
A138: Autre : Autre : [ Expert ] | B138: Expert
A139: Autre : Autre : [ Expert ] | B139: Expert
A140: Autre : AUTRE : [ HOSPITALITE ] | B140: Hospitalité
A141: Autre : Autre : [ hospitalité liée à une manifestation scientifique ] | B141: Hospitalité
A142: Autre : Autre : [ Manifestation professionnelle ] | B142: Réunion professionnelle
A143: Autre : Autre : [ Manifestation professionnelle ] | B143: Réunion professionnelle
A144: Autre : Autre : [ Orateur / Intervenant ] | B144: Orateur
A145: Autre : Autre : [ Orateur / Intervenant ] | B145: Orateur
A146: Autre : Autre : [ Reunion professionnelle ] | B146: Réunion professionnelle
A147: Autre : Autre : [ Réunion professionnelle ] | B147: Réunion professionnelle
A148: Autre : Autre : [ Reunion professionnelle ] | B148: Réunion professionnelle
A149: Autre : Autre : [ Réunion professionnelle ] | B149: Réunion professionnelle
A150: Autre : Autre : [collaboration scientifique à titre gratuit] | B150: Expert
A151: Autre : Autre : [Collaboration Scientifique non remuneree] | B151: Expert
A152: Autre : AUTRE : [COLLABORATION SCIENTIFIQUE] | B152: Expert
A153: Autre : Autre : [Collaboration Scientifique] | B153: Expert
A154: Autre : Autre : [Communication scientifique] | B154: Expert
A155: Autre : Autre : [Communication scientifique] | B155: Expert
A156: Autre : Autre : [Consultant (HCP)] | B156: Conseil
A157: Autre : Autre : [Consultant (HCP)] | B157: Conseil
A158: Autre : AUTRE : [CONSULTANT] | B158: Conseil
A159: Autre : Autre : [Contrat autre] | B159: Autre
A160: Autre : AUTRE : [CONTRAT DE COLLABORATION SCIENTIFIQUE] | B160: Expert
A161: Autre : AUTRE : [CONTRAT DE COLLABORATION] | B161: Expert
A162: Autre : Autre : [Contrat de conseil & prestation] | B162: Conseil
A163: Autre : AUTRE : [CONTRAT DE CONSEIL & PRESTATION] | B163: Conseil
A164: Autre : Autre : [CONTRAT DE CONSULTANT] | B164: Conseil
A165: Autre : AUTRE : [CONTRAT D'ORATEUR] | B165: Orateur
A166: Autre : Autre : [Convention d ’Hospitalite] | B166: Hospitalité
A167: Autre : AUTRE : [CONVENTION D HOSPITALITE] | B167: Hospitalité
A168: Autre : Autre : [Convention d’Hospitalite] | B168: Hospitalité
A169: Autre : Autre : [Convention d’Hospitalite] | B169: Hospitalité
A170: Autre : Autre : [Convention d’Hospitalité] | B170: Hospitalité
A171: Autre : Autre : [Convention dHospitalité] | B171: Hospitalité
A172: Autre : Autre : [CONVENTION D'HOSPITALITE] | B172: Hospitalité
A173: Autre : Autre : [Convention d'Hospitalité] | B173: Hospitalité
A174: Autre : AUTRE : [CONVENTION HOSPITALITE] | B174: Hospitalité
A175: Autre : Autre : [Conventiond'hospitalité] | B175: Hospitalité
A176: Autre : AUTRE : [DROIT A L IMAGE] | B176: Autre
A177: Autre : Autre : [entretien] | B177: Etude de marché
A178: Autre : Autre : [entretien] | B178: Etude de marché
A179: Autre : AUTRE : [ETUDE CLINIQUE] | B179: Recherche Clinique
A180: Autre : Autre : [EXPERT CONSULTANT] | B180: Expert
A181: Autre : Autre : [Expertise] | B181: Expert
A182: Autre : Autre : [HONORAIRES ou CONTRAT] | B182: Autre
A183: Autre : Autre : [HONORAIRES] | B183: Autre
A184: Autre : Autre : [Hospitalité Evenement Scientifique] | B184: Réunion professionnelle
A185: Autre : Autre : [Hospitalité Evenement] | B185: Hospitalité
A186: Autre : AUTRE : [HOSPITALITE EVENEMENT] | B186: Hospitalité
A187: Autre : Autre : [Hospitalité Evenement] | B187: Hospitalité
A188: Autre : Autre : [HOSPITALITE] | B188: Hospitalité
A189: Autre : AUTRE : [INTERVENANT] | B189: Orateur
A190: Autre : Autre : [Lettre/mail Intervenant] | B190: Autre
A191: Autre : Autre : [Opération SA/Journée-Soirée] | B191: Hospitalité
A192: Autre : Autre : [Orateur] | B192: Orateur
A193: Autre : Autre : [Orateur] | B193: Orateur
A194: Autre : AUTRE : [PARTICIPATION RÉUNION SCIENTIFIQUE] | B194: Réunion professionnelle
A195: Autre : AUTRE : [PARTICIPATION RÉUNION SCIENTIFIQUE] | B195: Réunion professionnelle
A196: Autre : AUTRE : [PARTICIPATION R�ION SCIENTIFIQUE] | B196: Autre
A197: Autre : AUTRE : [PARTICIPATION R�ION SCIENTIFIQUE] | B197: Réunion professionnelle
A198: Autre : AUTRE : [PRESTATION DE SERVICES] | B198: Conseil
A199: Autre : AUTRE : [PRESTATIONS DE SERVICE] | B199: Conseil
A200: Autre : Autre : [Repas] | B200: Autre
... 463 more rows

Sheet FIRMES
A1: FIRME dans Transparence.sante.gouv.fr | B1: FIRME (libellé de regroupement)
A2: 22 Juillet Conseil | B2: 22 Juillet Conseil
A3: 3-D Matrix Europe SAS | B3: 3-D Matrix Europe SAS
A4: 3M Belgium bvba/sprl | B4: 3M Belgium bvba/sprl
A5: 3M Deutschland GmbH | B5: 3M Deutschland GmbH
A6: 3M France | B6: 3M France
A7: 3M MAROC | B7: 3M MAROC
A8: 3M United Kingdom PLC | B8: 3M United Kingdom PLC
A9: 3S ORTHO | B9: 3S ORTHO
A10: 4Tech Cardio Ltd | B10: 4Tech Cardio Ltd
A11: 7 MED INDUSTRIE | B11: 7 MED INDUSTRIE
A12: A a Z SANTE | B12: A a Z SANTE
A13: A DEC INTERNATIONAL INC | B13: A DEC INTERNATIONAL INC
A14: A.I.R. | B14: A.I.R.
A15: A.MENARINI diagnostics | B15: A.MENARINI diagnostics
A16: A.R.C. Pharma | B16: A.R.C. Pharma
A17: A+A | B17: A+A
A18: a2m rehateam | B18: a2m rehateam
A19: AADAIRC | B19: AADAIRC
A20: ABBOTT FRANCE | B20: ABBOTT
A21: ABBOTT HEALTHCARE SAS | B21: ABBOTT
A22: ABBOTT PRODUCTS SAS | B22: ABBOTT
A23: AbbVie | B23: AbbVie
A24: ABENA-FRANTEX | B24: ABENA-FRANTEX
A25: Abiomed GmbH | B25: Abiomed GmbH
A26: ABM | B26: ABM
A27: abmedica | B27: abmedica
A28: ABS-Bolton Medical | B28: ABS-Bolton Medical
A29: accomed | B29: accomed
A30: ACCORD HEALTHCARE FRANCE SAS | B30: ACCORD HEALTHCARE FRANCE SAS
A31: ACCOVION SARL | B31: ACCOVION SARL
A32: Accuray Europe | B32: Accuray Europe
A33: ACIST Europe BV | B33: ACIST Europe BV
A34: ACM | B34: ACM
A35: Acorda Therapeutics, Inc. | B35: Acorda Therapeutics, Inc.
A36: ACOUSTIQUE MEDICAL DU LITTORAL | B36: ACOUSTIQUE MEDICAL DU LITTORAL
A37: ACS-Agence Conseil Santé | B37: ACS-Agence Conseil Santé
A38: ACS-Agence Conseil Santé | B38: ACS-Agence Conseil Santé
A39: ACT+ Consulting | B39: ACT+ Consulting
A40: ACTAVIS GROUP PTC EHF | B40: ACTAVIS GROUP PTC EHF
A41: Actelion Pharmaceuticals France | B41: Actelion
A42: Actelion Pharmaceuticals Ltd | B42: Actelion
A43: ACTION D'ECLAT | B43: ACTION D'ECLAT
A44: ADAIR | B44: ADAIR
A45: ADAPSIA | B45: ADAPSIA
A46: Adaptimmune LTD | B46: Adaptimmune LTD
A47: ADARE PHARMACEUTICALS SAS | B47: ADARE PHARMACEUTICALS SAS
A48: ADDMEDICA | B48: ADDMEDICA
A49: ADEP ASSISTANCE | B49: ADEP ASSISTANCE
A50: Adept Field Solutions | B50: Adept Field Solutions
A51: ADIR ASSISTANCE | B51: ADIR ASSISTANCE
A52: Adiral Assistance | B52: Adiral Assistance
A53: ADIRAL Association d'Aide aux Traitements À Domicile | B53: ADIRAL Association d'Aide aux Traitements À Domicile
A54: ADLER ORTHO France | B54: ADLER ORTHO France
A55: Adler Ortho srl | B55: Adler Ortho srl
A56: ADS ALSACE | B56: ADS ALSACE
A57: ADS CHAMPAGNE ARDENNE | B57: ADS CHAMPAGNE ARDENNE
A58: ADS LORRAINE | B58: ADS LORRAINE
A59: ADVANCE SAS | B59: ADVANCE SAS
A60: Advanced Accelerator Applications | B60: Advanced Accelerator Applications
A61: Advanced Accelerator Applications International SA | B61: Advanced Accelerator Applications International SA
A62: ADVANCED BIONICS SARL | B62: ADVANCED BIONICS SARL
A63: Advanced Medical Services, AMS GmbH | B63: Advanced Medical Services, AMS GmbH
A64: ADVICENNE | B64: ADVICENNE
A65: Aegerion Pharmaceuticals | B65: Aegerion Pharmaceuticals
A66: Aepodia France SARL | B66: Aepodia France SARL
A67: AERIS Medical SAS | B67: AERIS Medical SAS
A68: AEROGEN | B68: AEROGEN
A69: AFFINITES SANTE | B69: AFFINITES SANTE
A70: Agence Conseil 3P | B70: Agence Conseil 3P
A71: agence européenne informatique | B71: agence européenne informatique
A72: Agfa HealthCare France SA | B72: Agfa HealthCare France SA
A73: AGFA Healthcare Imaging Agents France | B73: AGFA Healthcare Imaging Agents France
A74: AGILENT TECHNOLOGIES FRANCE | B74: AGILENT TECHNOLOGIES FRANCE
A75: AGIR À dom Assistance | B75: AGIR À dom Assistance
A76: Aide aux Insuffisants Respiratoires de la Région Auvergne (A.I.R.R.A.) | B76: Aide aux Insuffisants Respiratoires de la Région Auvergne (A.I.R.R.A.)
A77: Aide aux Insuffisants Respiratoires de la Région Auvergne (A.I.R.R.A.) | B77: Aide aux Insuffisants Respiratoires de la Région Auvergne (A.I.R.R.A.)
A78: AIR A DOMICILE | B78: AIR A DOMICILE
A79: AIR DE BRETAGNE | B79: AIR DE BRETAGNE
A80: AIR DOMICILE SANTE ALPES | B80: AIR DOMICILE SANTE ALPES
A81: AIR DOMICILE VALLEE DU RHONE | B81: AIR DOMICILE VALLEE DU RHONE
A82: Air Liquide European Homecare Operations Services | B82: Air Liquide European Homecare Operations Services
A83: AIR LIQUIDE MEDICAL SYSTEMS | B83: AIR LIQUIDE MEDICAL SYSTEMS
A84: AIR LIQUIDE SANTE (INTERNATIONAL) | B84: AIR LIQUIDE SANTE (INTERNATIONAL)
A85: AIR LIQUIDE SANTE FRANCE | B85: AIR LIQUIDE SANTE FRANCE
A86: AIR SANTE | B86: AIR SANTE
A87: AIRE | B87: AIRE
A88: AIREL | B88: AIREL
A89: AIXIAL | B89: AIXIAL
A90: AIXPER'F | B90: AIXPER'F
A91: AJ4MED | B91: AJ4MED
A92: ALAIN AFFLELOU FRANCHISEUR | B92: ALAIN AFFLELOU FRANCHISEUR
A93: ALAIR & AVD | B93: ALAIR & AVD
A94: Alcimed GmbH | B94: Alcimed GmbH
A95: Alcimed Inc | B95: Alcimed Inc
A96: Alcimed SARL | B96: Alcimed SARL
A97: Alcimed SAS | B97: Alcimed SAS
A98: Alcimed Sprl | B98: Alcimed Sprl
A99: Alcura France | B99: Alcura France
A100: ALERE E-SANTE SAS | B100: ALERE E-SANTE SAS
A101: ALERE SAS | B101: ALERE SAS
A102: Alexion Pharma France | B102: Alexion Pharma France
A103: ALFA WASSERMANN PHARMA | B103: ALFA WASSERMANN PHARMA
A104: Align Technology SAS | B104: Align Technology SAS
A105: Alimera Sciences France | B105: Alimera Sciences France
A106: ALISEO | B106: ALISEO
A107: Alizé Pharma SAS | B107: Alizé Pharma SAS
A108: Alizé Pharma SAS | B108: Alizé Pharma SAS
A109: Alizé Santé | B109: Alizé Santé
A110: Alizé Santé | B110: Alizé Santé
A111: ALK-Abelló | B111: ALK-Abelló
A112: ALK-AbellÓ | B112: ALK-AbellÓ
A113: ALKAPHARM | B113: ALKAPHARM
A114: All Global | B114: All Global
A115: ALLERGAN FRANCE | B115: ALLERGAN FRANCE
A116: alliance healthcare repartition | B116: alliance healthcare repartition
A117: ALLIANCE PHARMA FRANCE | B117: ALLIANCE PHARMA FRANCE
A118: ALLIANCE'PERF | B118: ALLIANCE'PERF
A119: ALLP MEDITEC | B119: ALLP MEDITEC
A120: ALMIRALL SAS | B120: ALMIRALL SAS
A121: ALMUS | B121: ALMUS
A122: ALPHATEC SPINE INC | B122: ALPHATEC SPINE INC
A123: ALPHEGA | B123: ALPHEGA
A124: ALPINE SCIENTIFIC | B124: ALPINE SCIENTIFIC
A125: ALSANZA sarl | B125: ALSANZA sarl
A126: ALTEOR | B126: ALTEOR
A127: alveol'air | B127: alveol'air
A128: ALVIMEDICA Medical Technologie France | B128: ALVIMEDICA Medical Technologie France
A129: AM AUDITION | B129: AM AUDITION
A130: AMADEUS SANTE | B130: AMADEUS SANTE
A131: AMB-I SANTE PROVENCE | B131: AMB-I SANTE PROVENCE
A132: AMC APPAREILLAGE ET MATERIEL DE CARDIOLOGIE | B132: AMC APPAREILLAGE ET MATERIEL DE CARDIOLOGIE
A133: American Medical Systems France | B133: American Medical Systems France
A134: American Orthodontics | B134: American Orthodontics
A135: AMGEN SAS | B135: Amgen
A136: AMICUS THERAPEUTICS SAS | B136: AMICUS THERAPEUTICS SAS
A137: AMO FRANCE SAS | B137: AMO FRANCE SAS
A138: AMO Germany GmbH | B138: AMO Germany GmbH
A139: AMO INC USA | B139: AMO INC USA
A140: Amplifon Groupe France | B140: Amplifon Groupe France
A141: AMPLITUDE | B141: AMPLITUDE
A142: AMS 25 | B142: AMS 25
A143: AMS 70 | B143: AMS 70
A144: AMS 88 | B144: AMS 88
A145: ANERA | B145: ANERA
A146: ANNAYAKE | B146: ANNAYAKE
A147: ANTADIR | B147: ANTADIR
A148: Antadir Assistance SAS | B148: Antadir Assistance SAS
A149: ANTHOGYR | B149: ANTHOGYR
A150: ANTILLES AUDITION GUADELOUPE | B150: ANTILLES AUDITION GUADELOUPE
A151: AOTI Ltd | B151: AOTI Ltd
A152: APARD | B152: APARD
A153: apol | B153: apol
A154: APOLLO ENDOSURGERY UK LTD | B154: APOLLO ENDOSURGERY UK LTD
A155: Applied Medical France | B155: Applied Medical France
A156: APROVA | B156: APROVA
A157: APTALIS PHARMA SAS | B157: APTALIS PHARMA SAS
A158: Aptiv Solutions | B158: Aptiv Solutions
A159: AQUILAB | B159: AQUILAB
A160: ARAIR Assistance | B160: ARAIR Assistance
A161: ARAIR Assistance S.A. | B161: ARAIR Assistance S.A.
A162: ARAIRCHAR | B162: ARAIRCHAR
A163: arard | B163: arard
A164: ARCHIMEDES PHARMA France | B164: ARCHIMEDES PHARMA France
A165: ARCOS | B165: ARCOS
A166: ARGON MEDICAL DEVICES | B166: ARGON MEDICAL DEVICES
A167: ARIAD Pharmaceuticals (France) | B167: ARIAD Pharmaceuticals (France)
A168: ARJOHUNTLEIGH | B168: ARJOHUNTLEIGH
A169: ARROW GENERIQUES SAS | B169: ARROW GENERIQUES SAS
A170: ARSENAL-CDM | B170: ARSENAL-CDM
A171: ART&COS | B171: ART&COS
A172: ARTHES | B172: ARTHES
A173: Arthrex SAS | B173: Arthrex SAS
A174: Arthritis Fondation Courtin | B174: Arthritis Fondation Courtin
A175: ArthroCare France | B175: ArthroCare France
A176: Artialis | B176: Artialis
A177: ARX SAS | B177: ARX SAS
A178: ASAHI INTECC CO., LTD. | B178: ASAHI INTECC CO., LTD.
A179: Ascensia Diabetes Care France | B179: Ascensia Diabetes Care France
A180: ASDIA | B180: ASDIA
A181: Asept InMed | B181: Asept InMed
A182: ASKLE SANTE | B182: ASKLE SANTE
A183: ASPEN FRANCE | B183: ASPEN FRANCE
A184: ASPIDE AESTHETIC | B184: ASPIDE AESTHETIC
A185: ASPIDE MEDICAL | B185: ASPIDE MEDICAL
A186: ASSISTANCE DU GRAND EST | B186: ASSISTANCE DU GRAND EST
A187: ASSISTANCES MEDICALES SPECIALISEES | B187: ASSISTANCES MEDICALES SPECIALISEES
A188: Association Françoise et Eugène MINKOWSKI pour la santé mentale des migrants | B188: Association Françoise et Eugène MINKOWSKI pour la santé mentale des migrants
A189: Association Françoise et Eugène MINKOWSKI pour la santé mentale des migrants | B189: Association Françoise et Eugène MINKOWSKI pour la santé mentale des migrants
A190: Association pour le Développement de l'Enseignement et des Recherches auprès des universités des centres de recherches et des entreprises d'Aquitaine (ADERA) | B190: Association pour le Développement de l'Enseignement et des Recherches auprès des universités des centres de recherches et des entreprises d'Aquitaine (ADERA)
A191: Association pour le Développement de l'Enseignement et des Recherches auprès des universités des centres de recherches et des entreprises d'Aquitaine (ADERA) | B191: Association pour le Développement de l'Enseignement et des Recherches auprès des universités des centres de recherches et des entreprises d'Aquitaine (ADERA)
A192: ASTELLAS PHARMA | B192: ASTELLAS PHARMA
A193: ASTELLAS PHARMA B.V. | B193: ASTELLAS PHARMA B.V.
A194: ASTELLAS PHARMA GLOBAL DEVELOPMENT | B194: ASTELLAS PHARMA GLOBAL DEVELOPMENT
A195: ASTELLAS PHARMA GmbH | B195: ASTELLAS PHARMA GmbH
A196: ASTELLAS PHARMA Inc | B196: ASTELLAS PHARMA Inc
A197: ASTELLAS PHARMA Ltd | B197: ASTELLAS PHARMA Ltd
A198: ASTELLAS PHARMA S.A. | B198: ASTELLAS PHARMA S.A.
A199: Astellas Pharma Singapore Pte. Ltd. | B199: Astellas Pharma Singapore Pte. Ltd.
A200: ASTELLAS PHARMACEUTICALS AE | B200: ASTELLAS PHARMACEUTICALS AE
... 1909 more rows

Sheet Conception
B2: Concepteur :
D4: François PESTY
D5: Pharmacien, Ancien Interne des Hôpitaux de Paris, Institut Supérieur de Gestion,
D6: Consultant indépendant,
D7: Expert-Conseil en organisation et informatisation du circuit du médicament / Optimisation des approvisionnements et des stocks pharmaceutiques / Pilotage « médico-économique » des médicaments et dispositifs médicaux / Campagne « pilotes » de visites médicalisées des délégués de l’assurance maladie sur le médicament / Pertinence des traitements médicamenteux
D12: 2, square Gay Lussac
D13: 78330 Fontenay le Fleury
D14: Francois.PESTY@Wanadoo.fr
D15: 01 30 45 03 59 / 06 88 89 53 51
B18: François PESTY est membre de l'association FORMINDEP,

Sheet Déplacements
A2: Début | B2: Fin | C2: Signature | D2: Congrès | E2: Lieux | F2: Firme

Sheet Tableaux de synthèse
C3: Synthèse | G3: Avantages perçus | O3: Conventions signées | Z3: Montants des avantages versés par les entreprises - Montants des avantages versés par les entreprises - Montants des avantages versés par les entreprises - Montants des avantages versés | BA3: Nombres d'avantages versés par les entreprises - Nombres d'avantages versés par les entreprises - Nombres d'avantages versés par les entreprises - Nombres d'avantages versés par les entreprises - Nombres d'avantages versés par les entreprises - | CB3: Nombres de conventions signées avec les entreprises - Nombres de conventions signées avec les entreprises - Nombres de conventions signées avec les entreprises - Nombres de conventions signées avec les entreprises - Nombres de conventions signées avec les entreprises -
B4: Bénéficiaire | C4: Total avantages perçus (€) | D4: Nombre d'avantages perçus | E4: Nombre de conventions signées | F4: Rémunérations + montants de conventions | G4: Transport | H4: Hébergement | I4: Repas | J4: Hospitalité | K4: Inscription | L4: Conseil | M4: Congrès | N4: Autre | O4: Hospitalité | P4: Orateur | Q4: Réunion professionnelle | R4: Expert | S4: Conseil | T4: Recherche Clinique | U4: Etude de marché | V4: Formateur | W4: Rédacteur | X4: Réunion de « Board » | Y4: Autre | Z4: Roche | AA4: Amgen | AB4: Pierre Fabre Médicament | AC4: Bristol -Myers Squibb | AD4: Janssen-Cilag | AE4: BOEHRINGER INGELHEIM FRANCE | AF4: Novartis | AG4: CELGENE | AH4: Medicys Limited | AI4: MSD France | AJ4: AstraZeneca | AK4: Lilly | AL4: VIFOR FRANCE SA | AM4: HOSPIRA | AN4: MERCK SERONO | AO4: Pfizer | AP4: GSK | AQ4: GILEAD SCIENCES | AR4: BIOPROJET PHARMA | AS4: NOVEX PHARMA | AT4: ASTELLAS PHARMA | AU4: Sanofi Aventis France | AV4: ETHYPHARM | AW4: Takeda France | AX4: Grünenthal | AY4: Genzyme | AZ4: Bayer HealthCare SAS | BA4: Roche | BB4: Amgen | BC4: Bristol -Myers Squibb | BD4: Pierre Fabre Médicament | BE4: Janssen-Cilag | BF4: BOEHRINGER INGELHEIM FRANCE | BG4: AstraZeneca | BH4: GSK | BI4: MERCK SERONO | BJ4: Pfizer | BK4: HOSPIRA | BL4: NOVEX PHARMA | BM4: Lilly | BN4: Sanofi Aventis France | BO4: GILEAD SCIENCES | BP4: CELGENE | BQ4: BIOPROJET PHARMA | BR4: ASTELLAS PHARMA | BS4: MSD France | BT4: VIFOR FRANCE SA | BU4: Genzyme | BV4: Novartis | BW4: Grünenthal | BX4: Takeda France | BY4: Bayer HealthCare SAS | BZ4: ETHYPHARM | CA4: Medicys Limited | CB4: Roche | CC4: Pierre Fabre Médicament | CD4: BOEHRINGER INGELHEIM FRANCE | CE4: Amgen | CF4: Janssen-Cilag | CG4: Lilly | CH4: AstraZeneca | CI4: A+A | CJ4: VIFOR FRANCE SA | CK4: MSD France | CL4: TEVA SANTE SAS | CM4: Grünenthal | CN4: CELGENE | CO4: PPD FRANCE SAS | CP4: Bristol -Myers Squibb | CQ4: ETHYPHARM | CR4: SHIRE France S.A.
B5: Pr Jean-François MORÈRE | C5: =SUMPRODUCT(('Avantages perçus'!$A$2:$A$30002=B5)*('Avantages perçus'!$F$2:$F$30002)) -> 104850 | D5: =COUNTIFS('Avantages perçus'!$A$2:$A$30002,B5,'Avantages perçus'!$F$2:$F$30002,">0") -> 245 | E5: =COUNTIFS('Conventions signées'!$A$2:$A$15000,B5,'Conventions signées'!$A$2:$A$15000,"*") -> 84 | F5: =Rémunérations!C67+'Conventions signées'!G87 -> 67135 | G5: 66971 | H5: 18831 | I5: 4928 | J5: 3473 | K5: 9735 | L5: 0 | M5: 0 | N5: 912 | O5: 15 | P5: 14 | Q5: 33 | R5: 5 | S5: 11 | T5: 1 | U5: 2 | V5: 1 | W5: 0 | X5: 1 | Y5: 1 | Z5: 73765 | AA5: 13228 | AB5: 4948 | AC5: 4849 | AD5: 2357 | AE5: 1366 | AF5: 1163 | AG5: 1040 | AH5: 850 | AI5: 465 | AJ5: 122 | AK5: 87 | AL5: 81 | AM5: 78 | AN5: 65 | AO5: 60 | AP5: 55 | AQ5: 43 | AR5: 39 | AS5: 37 | AT5: 35 | AU5: 32 | AV5: 30 | AW5: 17 | AX5: 16 | AY5: 12 | AZ5: 10 | BA5: 119 | BB5: 51 | BC5: 13 | BD5: 11 | BE5: 8 | BF5: 4 | BG5: 4 | BH5: 3 | BI5: 3 | BJ5: 3 | BK5: 3 | BL5: 2 | BM5: 2 | BN5: 2 | BO5: 2 | BP5: 2 | BQ5: 2 | BR5: 2 | BS5: 1 | BT5: 1 | BU5: 1 | BV5: 1 | BW5: 1 | BX5: 1 | BY5: 1 | BZ5: 1 | CA5: 1 | CB5: 50 | CC5: 6 | CD5: 6 | CE5: 5 | CF5: 2 | CG5: 2 | CH5: 2 | CI5: 2 | CJ5: 1 | CK5: 1 | CL5: 1 | CM5: 1 | CN5: 1 | CO5: 1 | CP5: 1 | CQ5: 1 | CR5: 1
B6: TOTAUX | C6: 104850 | D6: 245 | E6: 84 | F6: =F5 -> 67135 | G6: 66971 | H6: 18831 | I6: 4928 | J6: 3473 | K6: 9735 | L6: 0 | M6: 0 | N6: 912 | O6: 15 | P6: 14 | Q6: 33 | R6: 5 | S6: 11 | T6: 1 | U6: 2 | V6: 1 | W6: 0 | X6: 1 | Y6: 1 | Z6: 73765 | AA6: 13228 | AB6: 4948 | AC6: 4849 | AD6: 2357 | AE6: 1366 | AF6: 1163 | AG6: 1040 | AH6: 850 | AI6: 465 | AJ6: 122 | AK6: 87 | AL6: 81 | AM6: 78 | AN6: 65 | AO6: 60 | AP6: 55 | AQ6: 43 | AR6: 39 | AS6: 37 | AT6: 35 | AU6: 32 | AV6: 30 | AW6: 17 | AX6: 16 | AY6: 12 | AZ6: 10 | BA6: 119 | BB6: 51 | BC6: 13 | BD6: 11 | BE6: 8 | BF6: 4 | BG6: 4 | BH6: 3 | BI6: 3 | BJ6: 3 | BK6: 3 | BL6: 2 | BM6: 2 | BN6: 2 | BO6: 2 | BP6: 2 | BQ6: 2 | BR6: 2 | BS6: 1 | BT6: 1 | BU6: 1 | BV6: 1 | BW6: 1 | BX6: 1 | BY6: 1 | BZ6: 1 | CA6: 1 | CB6: 50 | CC6: 6 | CD6: 6 | CE6: 5 | CF6: 2 | CG6: 2 | CH6: 2 | CI6: 2 | CJ6: 1 | CK6: 1 | CL6: 1 | CM6: 1 | CN6: 1 | CO6: 1 | CP6: 1 | CQ6: 1 | CR6: 1
B9: Période d'étude | C9: 1er semestre 2013 au 2ème semestre 2017, soient 5 années
B10: Début de l'analyse | C10: 21/06/2018 12:26:31
B11: Fin de l'analyse | C11: 21/06/2018 12:26:50
C13: Total Mts | D13: % | E13: Cumul%
B14: ROCHE SAS | C14: ='Avantages perçus'!F250+'Conventions signées'!G89+Rémunérations!C70 -> 133022 | D14: =C14/(C$6+F$6) -> 0.7734511731 | E14: =D14 -> 0.7734511731
B15: AMGEN SAS | C15: ='Avantages perçus'!F251 -> 13228 | D15: =C15/(C$6+F$6) -> 0.07691368433 | E15: =D15+E14 -> 0.8503648574
B16: BRISTOL-MYERS SQUIBB | C16: ='Avantages perçus'!F253+Rémunérations!C72 -> 5449 | D16: 0.03168299561 | E16: =D16+E15 -> 0.882047853
B17: Lilly France SAS | C17: ='Conventions signées'!G90+'Avantages perçus'!F259 -> 5055 | D17: 0.02939209815 | E17: 0.9114399512
B18: PIERRE FABRE | C18: ='Avantages perçus'!F252 -> 4948 | D18: 0.02876995087 | E18: 0.940209902
B19: BOEHRINGER INGELHEIM | C19: ='Avantages perçus'!F254+'Conventions signées'!G91+Rémunérations!C71 -> 3366 | D19: =C19/(C$6+F$6) -> 0.01957147426 | E19: =D19+E18 -> 0.9597813763
B20: JANSSEN-CILAG | C20: ='Avantages perçus'!F255 -> 2357 | D20: 0.01370468355 | E20: 0.9734860598
B21: NOVARTIS PHARMA | C21: ='Avantages perçus'!F256 -> 1163 | D21: 0.006762217635 | E21: 0.9802482775
B22: CELGENE | C22: ='Avantages perçus'!F257 -> 1040 | D22: 0.006047038986 | E22: 0.9862953165
